Cogmind - Beta 15 *** ADVENTURER MODE // 2025.05.06 @ 14:17:36 // Winter2019/RPGLIKE Player: Gallgagger Result: Defending 0bPrime! Performance ------------- Evolutions (8) 4000 Regions Visited (20) 4000 Robots Destroyed (856) 4280 Value Destroyed (60235) 60235 Prototype IDs (150) 3000 Alien Tech Used (2) 400 Bonus (65197) 65197 TOTAL SCORE: 141112 Bonus ------- High Alert Combat Kills 44491 Follower Combat Kills 4469 Entered DSFs 500 Registered with UFD 300 Met Optimus in HQ 500 Met Data Miner 300 Met Zhirov 300 Scanned by Researcher 500 Met Optimus at Protoforge 1000 Completed Drillbomb Mission10000 Win 3000 Friendly Fire -163 Cogmind --------- Core Integrity 564/600 Matter 300/300 Energy 460/460 System Corruption 0% Temperature Cool (0) Movement Flying (13) Location 0bPrime Parts ------- > --- POWER (3) -------- Concept Zero-point Core Concept Zero-point Core Concept Zero-point Core > --- PROPULSION (6) --- Experimental Biomechanical Wings Experimental Surge Thruster Experimental Surge Thruster Experimental Surge Thruster (fused) Concept Fieldthrust Drive Concept Fieldthrust Drive > --- UTILITY (11) ----- Concept Dimensional Manipulator Advanced Signal Interpreter Concept Core Analysis Suite Improved Armor Integrity Analyzer Experimental Kinecellerator Advanced Weapon Cycler Graphene Brace Concept Beam Splitter (fused) Experimental EM Shield Concept Hardlight Director Concept Matter Streamer > --- WEAPON (4) ------- Concept XC Strikerail Concept XC Strikerail Concept XC Strikerail Concept XC Strikerail > --- INVENTORY (6) ---- Protomatter-91 Protomatter-90 Protomatter-90 Protomatter-14 Concept Weapon Articulator Peak State ------------ > --- POWER ------------ Concept Zero-point Core Concept Zero-point Core Concept Zero-point Core > --- PROPULSION ------- Experimental Biomechanical Wings Experimental Surge Thruster Experimental Surge Thruster Experimental Surge Thruster Concept Fieldthrust Drive Concept Fieldthrust Drive > --- UTILITY ---------- Concept Dimensional Manipulator Advanced Signal Interpreter Concept Core Analysis Suite Improved Armor Integrity Analyzer Experimental Kinecellerator Advanced Weapon Cycler Graphene Brace Concept Beam Splitter Experimental EM Shield Concept Hardlight Director Concept Matter Streamer > --- WEAPON ----------- Concept XC Strikerail Concept XC Strikerail Concept XC Strikerail Concept Deflector Sword > --- INVENTORY -------- Protomatter Protomatter Protomatter Protomatter Hybrid Graviton Reactor Concept Weapon Articulator [Rating: 268] Favorites ----------- Power Concept Zero-point Core Engine Light Ion Engine Power Core Concept Zero-point Core Reactor Light Antimatter Reactor Propulsion Flight Unit Treads High-density Centrium Heavy Treads Leg Overtuned Titanium Leg Wheel Subdweller Monowheel Hover Unit Hover Unit Flight Unit Flight Unit Utility Advanced Signal Interpreter Device Graphene Brace Storage Advanced Energy Well Processor Advanced Signal Interpreter Hackware Concept Network Penetrator Protection Tower Shield Weapon Improved Heavy Machine Gun Energy Gun Medium Laser Energy Cannon Subdweller Beam Cannon Ballistic Gun Improved Heavy Machine Gun Ballistic Cannon Antimatter Cannon Launcher Improved Concussive RPG Special Weapon Improved Remote Datajack Slashing Weapon Makeshift Axe Build | -11 -10 -10 -8 -6 -6 -6 -6 -5 -5 -5 -4 -4 -4 -4 -3 -3 -3 -2 -2 -2 ------- Run | Yrd Mat Sub Scr Fac Low Low Dat Pro Fac DSF Fac Upp Upp Zhi Pro Res Tes Res Qua Frg Slots Evolved 20 | 4 3 1 . 5 . . . 1 . 1 2 . . . 1 . . . . 2 Power 2 | 1 . . . . . . . . . . . . . . . . . . . 1 Propulsion 5 | 1 1 1 . . . . . . . . 1 . . . . . . . . 1 Utility 10 | 1 2 . . 4 . . . . . 1 1 . . . 1 . . . . . Weapon 3 | 1 . . . 1 . . . 1 . . . . . . . . . . . . Parts Attached 150 | 7 9 8 8 21 3 3 . 2 . 5 4 1 . 5 4 2 22 1 6 39 Power 15 | 2 . . . 3 . . . 1 . . . . . 1 1 . . . 1 6 Engine 4 | 2 . . . 2 . . . . . . . . . . . . . . . . Core 6 | . . . . 1 . . . 1 . . . . . . . . . . . 4 Reactor 5 | . . . . . . . . . . . . . . 1 1 . . . 1 2 Propulsion 36 | 2 5 3 3 5 1 . . . . 1 1 . . 3 . 1 2 . 1 8 Treads 1 | . . . . . . . . . . . . . . . . . . . 1 . Leg 3 | . . . 2 1 . . . . . . . . . . . . . . . . Wheel 5 | 2 . 3 . . . . . . . . . . . . . . . . . . Hover 3 | . 2 . 1 . . . . . . . . . . . . . . . . . Flight 24 | . 3 . . 4 1 . . . . 1 1 . . 3 . 1 2 . . 8 Utility 61 | 1 4 2 3 6 2 3 . . . 3 3 . . 1 1 1 9 1 4 17 Device 39 | 1 . . 3 3 1 1 . . . 3 1 . . . . 1 7 1 4 13 Storage 1 | . . . . . . . . . . . . . . 1 . . . . . . Processor 14 | . 4 . . . 1 1 . . . . 2 . . . 1 . 2 . . 3 Hackware 1 | . . . . . . . . . . . . . . . . . . . . 1 Protection 6 | . . 2 . 3 . 1 . . . . . . . . . . . . . . Artifact . | . . . . . . . . . . . . . . . . . . . . . Weapon 38 | 2 . 3 2 7 . . . 1 . 1 . 1 . . 2 . 11 . . 8 Energy Gun 9 | 2 . 1 2 . . . . . . . . . . . . . 2 . . 2 Energy Cannon 3 | . . 1 . 1 . . . . . . . . . . . . 1 . . . Ballistic Gun 14 | . . . . 5 . . . . . . . 1 . . 1 . 3 . . 4 Ballistic Cannon 3 | . . . . 1 . . . . . . . . . . . . 2 . . . Launcher 4 | . . . . . . . . . . 1 . . . . 1 . 1 . . 1 Special Weapon 3 | . . . . . . . . 1 . . . . . . . . 2 . . . Impact Weapon . | . . . . . . . . . . . . . . . . . . . . . Slashing Weapon 2 | . . 1 . . . . . . . . . . . . . . . . . 1 Piercing Weapon . | . . . . . . . . . . . . . . . . . . . . . Special Melee Weapon . | . . . . . . . . . . . . . . . . . . . . . Unidentified Prototypes 44 | . . 1 . 4 . 1 . . . . . . . 3 1 1 17 . 6 10 Parts Lost 2 | . . . 1 1 . . . . . . . . . . . . . . . . Power . | . . . . . . . . . . . . . . . . . . . . . Propulsion . | . . . . . . . . . . . . . . . . . . . . . Utility 1 | . . . 1 . . . . . . . . . . . . . . . . . Weapon 1 | . . . . 1 . . . . . . . . . . . . . . . . Highest Loss Streak 1 | . . . 1 1 . . . . . . . . . . . . . . . . To Critical Strikes . | . . . . . . . . . . . . . . . . . . . . . Average Backups 1 | . . . 1 3 2 3 3 3 3 1 2 2 2 2 2 2 2 1 . 1 Power . | . . . . . . . . . . . . . . . . . . . . . Propulsion . | . . . . . . . . . . . 1 1 . . . . . . . . Utility . | . . . . . . 1 1 1 1 . . . . . . . . . . . Weapon . | . . . 1 2 1 1 1 1 1 . . . . . . . . . . . Tool/Special . | . . . . . . . . . . . . . . . . . . . . . Unused Backups 1 | . . . . . . . . . . . . . . . . . . . . 1 Power . | . . . . . . . . . . . . . . . . . . . . . Propulsion . | . . . . . . . . . . . . . . . . . . . . . Utility 1 | . . . . . . . . . . . . . . . . . . . . 1 Weapon . | . . . . . . . . . . . . . . . . . . . . . Tool/Special . | . . . . . . . . . . . . . . . . . . . . . Average Slot Usage (%) 86 | . 88 65 53 90 98 100 100 100 100 99 96 94 95 97 100 100 99 100 99 96 Engine 5 | . 22 11 10 11 5 5 5 . . . . . . . . . . . . . Core 4 | . . . . . 5 5 5 10 11 10 9 9 9 9 4 4 4 4 4 7 Reactor 1 | . . . . . . . . . . . . . . . 3 4 4 4 4 3 Flight 19 | . 5 15 15 13 23 23 23 22 22 21 19 19 19 21 22 22 22 22 21 24 Device 23 | . 10 5 6 23 29 24 23 22 22 29 34 33 33 32 31 31 35 36 36 33 Processor 9 | . 9 7 5 5 9 11 11 11 11 6 8 9 9 9 11 13 13 13 13 12 Protection 3 | . . 4 4 5 5 9 11 11 11 9 4 4 4 4 4 4 . . . . Energy Gun 3 | . 22 7 6 . . . . . . . . . . . . . . . . . Ballistic Gun 10 | . . . . 14 17 17 17 16 16 15 14 18 19 19 18 18 16 18 18 13 Peak Build Rating 268 | 9 16 41 50 66 69 71 70 79 77 90 107 109 109 119 123 133 166 164 179 268 Average Rating 117 | 5 10 34 39 49 67 69 70 76 77 83 98 108 109 112 120 130 149 163 164 232 On Entrance 85 | . 9 16 41 30 63 69 70 70 77 77 89 102 109 109 114 123 133 161 164 172 Naked Turns . | . . . . . . . . . . . . . . . . . . . . . Heaviest Build 92 | 12 12 53 56 39 39 46 46 50 42 44 41 45 45 45 54 55 64 64 75 92 Greatest Support 99 | 32 32 50 48 53 47 47 47 52 52 52 57 57 57 58 56 59 66 66 66 99 Greatest Overweight (x) 4 | . 1 3 4 . . . . . . 1 . . . . . . 1 . 1 1 Average Overweight (x) . | . . . 1 . . . . . . . . . . . . . . . . . Largest Inventory Capacity 6 | 1 1 1 3 5 5 5 5 5 5 5 5 5 5 5 5 5 5 5 5 6 Average Capacity 3 | 1 1 1 1 4 5 5 5 5 5 5 5 5 5 5 5 5 5 5 5 5 Most Carried 6 | . 1 1 3 5 5 5 5 5 5 5 4 4 5 5 5 5 5 5 5 6 Average Carried 3 | . . . 1 4 4 5 5 5 5 2 3 3 4 5 5 5 4 5 4 4 Final Capacity 6 | 1 1 1 3 5 5 5 5 5 5 5 5 5 5 5 5 5 5 5 5 6 Final Carried 5 | . 1 1 3 5 5 5 5 5 5 2 2 4 5 5 5 5 5 5 4 5 Class Distribution -------------------- 40% | Hacker-Scout 32% | Mutant 13% | Commander-Scout 10% | Scavenger-Scout Dominant Class ---------------- Mutant | -10/Materials Mutant | -10/Subcaves Mutant | -8/Scraptown Hacker-Scout | -6/Factory Commander-Scout | -6/Lower Caves Commander-Scout | -6/Lower Caves Commander-Scout | -6/Data Miner Hacker-Scout | -5/Proximity Caves Hacker-Scout | -5/Factory Hacker-Scout | -5/DSF Hacker-Scout | -4/Factory Commander-Scout | -4/Upper Caves Hacker-Scout | -4/Upper Caves Hacker-Scout | -4/Zhirov Hacker-Scout | -3/Proximity Caves Commander-Scout | -3/Research Hacker-Scout | -3/Testing Scavenger-Scout | -2/Research Scavenger-Scout | -2/Quarantine Hacker-Scout | -2/Protoforge Resources | -11 -10 -10 -8 -6 -6 -6 -6 -5 -5 -5 -4 -4 -4 -4 -3 -3 -3 -2 -2 -2 ----------- Run | Yrd Mat Sub Scr Fac Low Low Dat Pro Fac DSF Fac Upp Upp Zhi Pro Res Tes Res Qua Frg Matter Collected 23312 | 270 90 120 60 913 254 246 . 198 . 430 1034 476 255 . 931 656 1482 1018 1238 13641 Remotely 18562 | . . . . 815 254 246 . 198 . 430 1034 476 255 . 931 656 1482 1018 1218 9549 Salvage Created 52554 | 83 1343 393 626 1453 301 517 . 424 . 316 1746 556 391 . 789 655 1260 2024 2896 36781 Parts 2497 | 5 48 32 11 75 11 17 . 17 . 23 58 22 16 . 62 36 87 112 131 1734 Haulers Intercepted 3 | . 2 . . . . 1 . . . . . . . . . . . . . . Recyclers Shooed 4 | 1 2 . . 1 . . . . . . . . . . . . . . . . Parts Field Recycled . | . . . . . . . . . . . . . . . . . . . . . Retrieved Matter . | . . . . . . . . . . . . . . . . . . . . . Parts Self-Destructed 218 | . . 8 4 . 23 37 . 15 . . . 46 17 . 68 . . . . . Prevented 1 | . . 1 . . . . . . . . . . . . . . . . . . Kills | -11 -10 -10 -8 -6 -6 -6 -6 -5 -5 -5 -4 -4 -4 -4 -3 -3 -3 -2 -2 -2 ------- Run | Yrd Mat Sub Scr Fac Low Low Dat Pro Fac DSF Fac Upp Upp Zhi Pro Res Tes Res Qua Frg Combat Hostiles Destroyed 832 | . 27 8 6 26 8 9 . 6 . 11 30 15 4 . 22 12 21 23 33 571 Melee 4 | . . 4 . . . . . . . . . . . . . . . . . . Guns 828 | . 27 4 6 26 8 9 . 6 . 11 30 15 4 . 22 12 21 23 33 571 Classes Destroyed 35 | 2 4 2 1 5 . 1 . 1 . 3 1 . . . 3 . 3 . 2 7 Worker 4 | . . . . . . . . . . . . . . . . . 2 1 1 . Builder 6 | . . . . . . . . . . . 1 . . . . . 2 . 2 1 Tunneler 2 | 1 . . . . . . . . . . . . . . . . . 1 . . Hauler 4 | . 2 . . . . 1 . . . . . . . . . . . . . 1 Recycler 7 | 1 4 . . 1 . . . . . . . . . . . . . . 1 . Carrier 7 | . . . . . . . . . . . . . . . . . . . . 7 Mechanic 11 | . . . . . . . . . . . . . . . . . . . . 11 Operator 2 | . . . . 1 . . . . . . . . . . . . . 1 . . Drone 12 | . . . . . . . . . . . . . . . 1 . . . . 11 Turret 2 | . . 2 . . . . . . . . . . . . . . . . . . Watcher 19 | . 3 . . . . . . . . . 1 . . . . 3 3 5 3 1 Swarmer 134 | . 3 3 . 3 2 2 . . . 4 9 9 . . 7 2 5 . 5 80 Cutter 2 | . . . . . . . . . . 2 . . . . . . . . . . Saboteur 18 | . . . . 1 . . . . . . . . . . . . . . . 17 Grunt 176 | . 24 . . 14 4 5 . 2 . . 16 4 3 . 4 3 6 8 18 65 Brawler 27 | . . . . . . . . . . . . . . . . . . . . 27 Duelist 33 | . . . . . . 1 . 1 . . . 1 . . . . . . . 30 Protector 29 | . . . . . . . . . . . . . . . 1 . . . . 28 Researcher 6 | . . . . . . . . . . . . . . . . . . . 1 5 Sentry 42 | . . . . 5 1 1 . . . . 4 1 . . 2 3 1 4 3 17 Demolisher 9 | . . . . . . . . . . . . . . . 4 . . . . 5 Specialist 14 | . . . . . . . . . . 2 . . . . . . 1 . 3 8 Hunter 74 | . . . . 2 . . . . . 2 . . . . 2 2 3 6 . 57 Programmer 65 | . . . . 1 1 . . 2 . . . . . . . 1 3 2 3 52 Heavy 2 | . . . . . . . . . . 1 . . . . . . . 1 . . Behemoth 8 | . . . . . . . . 1 . . 1 . 1 . 1 1 . 2 . 1 Hotshot 12 | . . . . . . . . . . . . . . . . . . . . 12 Decapitator 10 | . . . . . . . . . . . . . . . . . . . . 10 Immortal 7 | . . . . . . . . . . . . . . . . . . . . 7 Overlord 1 | . . . . . . . . . . . . . . . . . . . . 1 Striker 56 | . . . . . . . . . . . . . . . . . 1 . . 55 Executioner 80 | . . . . . . . . . . . . . . . . . . . . 80 Alpha 7 5 | . . . . . . . . . . . . . . . . . 1 . . 4 Fortress 1 | . . . . . . . . . . . . . . . . . . . 1 . Subdweller 5 | . . 5 . . . . . . . . . . . . . . . . . . Ranger 1 | . . . . . . . . . . . . . . . . . . . . 1 Scrapper 6 | . . . 6 . . . . . . . . . . . . . . . . . Elite 1 | . . . . . . . . . . . . . . . . . . . . 1 Scrapoid 2 | . . . . . . . . . . . . . . . . . . . . 2 Best Kill Streak 45 | 2 5 3 6 5 3 5 . 3 . 8 10 5 2 . 7 7 7 11 15 45 Combat Bots Only 42 | . 4 3 6 4 3 5 . 3 . 8 9 5 2 . 7 6 7 7 15 42 Max Kills in Single Turn 4 | 1 1 1 1 2 1 2 . 1 . 2 3 3 1 . 2 2 2 1 3 4 Gunslinging 3 | . . . . 1 . 1 . . . 1 2 2 . . 1 1 1 . 1 3 Exploded . | . . . . . . . . . . . . . . . . . . . . . Melee 1 | . . 1 . . . . . . . . . . . . . . . . . . Uniques/NPCs Destroyed . | . . . . . . . . . . . . . . . . . . . . . Combat | -11 -10 -10 -8 -6 -6 -6 -6 -5 -5 -5 -4 -4 -4 -4 -3 -3 -3 -2 -2 -2 -------- Run | Yrd Mat Sub Scr Fac Low Low Dat Pro Fac DSF Fac Upp Upp Zhi Pro Res Tes Res Qua Frg Hostile Shots Fired 4402 | . 106 102 48 123 32 31 . 11 . 74 146 30 21 . 58 39 86 42 208 3245 Missed 1893 | . 33 35 10 48 19 13 . 4 . 36 72 14 5 . 21 19 36 23 100 1405 Hits 2509 | . 73 67 38 75 13 18 . 7 . 38 74 16 16 . 37 20 50 19 108 1840 Melee 17 | . . . . . . . . . . 1 . . . . . . . . . 16 Projectile 2492 | . 73 67 38 75 13 18 . 7 . 37 74 16 16 . 37 20 50 19 108 1824 AOE 14 | . . . . 5 . . . . . . . . . . 4 . . 1 . 4 Critical Strikes 126 | . . . 4 5 1 1 . . . 3 8 3 . . 2 . 2 1 8 88 Actively Blocked 108 | . . . . . . . . . . . 6 3 . . 2 . 2 1 8 86 Part Disruptions 4 | . . . . . . . . . . . . . . . . . . . . 4 Damage Taken 15396 | . 616 705 587 1243 139 245 . 120 . 601 1251 350 288 . 712 352 286 256 713 6932 Core 11226 | . 505 383 361 879 105 180 . 69 . 396 848 251 222 . 511 272 228 196 554 5266 Absorbed by Shields 17670 | . . . . 4 . . . . . . . . . . . . 426 230 842 16168 Redirected to Core 9313 | . 343 356 268 716 97 109 . 69 . 306 726 220 152 . 437 230 185 184 495 4420 Redirected to Shielding 75 | . . . . 14 5 22 . 8 . 26 . . . . . . . . . . Ignored by Resistances 30849 | . 197 206 164 569 57 89 . 43 . 217 461 126 103 . 262 199 524 343 1245 26044 Core Remaining (%) 90 | 100 . . 39 . . . . 100 . 97 . . . . 100 . 100 . . 94 Volleys Fired 1461 | 3 93 33 10 57 17 18 . 14 . 30 82 28 15 . 47 37 72 48 59 798 Largest 4 | 2 2 2 2 3 3 3 . 3 . 3 4 4 4 . 4 4 4 4 4 4 Hottest 160 | 90 90 90 160 45 45 45 . 45 . 45 45 80 80 . 100 100 160 160 160 160 Shots Fired 4544 | 6 186 45 20 152 51 54 . 42 . 90 247 110 60 . 179 138 229 192 226 2517 Gun 4537 | 6 186 43 20 152 51 54 . 42 . 90 246 110 60 . 179 138 226 192 225 2517 Cannon 2 | . . 2 . . . . . . . . . . . . . . . . . . Launcher 1 | . . . . . . . . . . . 1 . . . . . . . . . Special 4 | . . . . . . . . . . . . . . . . . 3 . 1 . Kinetic 4282 | . . . . 152 51 54 . 42 . 90 246 110 60 . 179 138 226 192 225 2517 Thermal 239 | 6 186 27 20 . . . . . . . . . . . . . . . . . Explosive 1 | . . . . . . . . . . . 1 . . . . . . . . . Electromagnetic 18 | . . 18 . . . . . . . . . . . . . . . . . . Robot Hit Streak 105 | 4 35 32 29 57 30 42 . 11 . 30 51 16 18 . 54 56 52 47 66 105 Robot Miss Streak 4 | . 1 1 1 2 1 1 . 1 . 1 2 4 1 . 3 2 2 3 2 3 Penetration Max 2 | . . . . . . . . . . . . 1 . . 2 1 1 1 2 2 Secondary Targets 310 | . 4 . 1 5 2 3 . 2 . 1 13 8 2 . 3 2 5 6 11 242 Max Gunslinging Chain 3 | . 1 . 1 2 1 2 . 1 . 1 2 2 1 . 1 1 1 1 1 3 Shots Hit Robots 3914 | 4 162 68 21 124 44 43 . 34 . 76 217 88 48 . 151 107 174 155 199 2199 Core Hits 2128 | 3 66 21 21 51 16 20 . 15 . 21 88 31 15 . 65 42 86 117 177 1273 Critical Kills 168 | . . . . 2 . . . . . 1 . . . . 2 1 4 6 8 144 Critical Parts Destroyed 200 | . . . . . . . . . . . 1 . . . 2 2 4 4 9 178 Critical Strikes 401 | . 9 6 . 2 . . . . . 1 1 . . . 4 3 8 11 17 339 Burn 13 | . 9 4 . . . . . . . . . . . . . . . . . . Destroy 386 | . . . . 2 . . . . . 1 1 . . . 4 3 8 11 17 339 Sever 2 | . . 2 . . . . . . . . . . . . . . . . . . Melee Attacks 36 | . . 32 4 . . . . . . . . . . . . . . . . . Impact . | . . . . . . . . . . . . . . . . . . . . . Slashing 36 | . . 32 4 . . . . . . . . . . . . . . . . . Piercing . | . . . . . . . . . . . . . . . . . . . . . Sneak Attacks . | . . . . . . . . . . . . . . . . . . . . . Combat Hostiles . | . . . . . . . . . . . . . . . . . . . . . Follow-up Attacks . | . . . . . . . . . . . . . . . . . . . . . Damage Inflicted 159793 | 49 2016 1924 716 2946 1194 1134 . 987 . 1986 5903 2360 1374 . 4158 3025 5997 5952 7867 110205 Guns 157909 | 49 2016 565 456 2946 1194 1134 . 987 . 1986 5775 2360 1374 . 4158 3025 5997 5919 7867 110101 Cannons 13 | . . . . . . . . . . . 13 . . . . . . . . . Explosions 252 | . . . . . . . . . . . 115 . . . . . . 33 . 104 Melee 1619 | . . 1359 260 . . . . . . . . . . . . . . . . . Ramming . | . . . . . . . . . . . . . . . . . . . . . Kinetic 154823 | . . . . 2946 1194 1134 . 987 . 1986 5775 2360 1374 . 4158 3025 5997 5919 7867 110101 Thermal 2787 | 49 2016 266 456 . . . . . . . . . . . . . . . . . Explosive 219 | . . . . . . . . . . . 115 . . . . . . . . 104 Electromagnetic 332 | . . 299 . . . . . . . . . . . . . . . 33 . . Impact 13 | . . . . . . . . . . . 13 . . . . . . . . . Slashing 1619 | . . 1359 260 . . . . . . . . . . . . . . . . . Piercing . | . . . . . . . . . . . . . . . . . . . . . Highest Corruption 8 | . . . . 1 1 . . . . . . . . . . . . . 1 8 Average Corruption 3 | . . . . 1 1 . . . . . . . . . . . . . 1 3 Corruption Purged 13 | . . . . . 1 . . . . . . . . . . . . . . 12 Corruption Blocked . | . . . . . . . . . . . . . . . . . . . . . Effects 100 | . . . . 5 . . . . . . . . . . . . . . 1 94 Message Errors 22 | . . . . 2 . . . . . . . . . . . . . . . 20 Matter Fused 20 | . . . . . . . . . . . . . . . . . . . . 20 Heat Flow Errors 12 | . . . . 1 . . . . . . . . . . . . . . . 11 Energy Discharges 11 | . . . . 1 . . . . . . . . . . . . . . . 10 Parts Rejected 3 | . . . . . . . . . . . . . . . . . . . . 3 Parts Fused 3 | . . . . . . . . . . . . . . . . . . . . 3 Data Loss (minor) 5 | . . . . . . . . . . . . . . . . . . . . 5 Data Loss (major) 3 | . . . . . . . . . . . . . . . . . . . . 3 Misfires 2 | . . . . 1 . . . . . . . . . . . . . . . 1 Alerts 2 | . . . . . . . . . . . . . . . . . . . . 2 Weapon Failures 17 | . . . . . . . . . . . . . . . . . . . 1 16 Overload Shots . | . . . . . . . . . . . . . . . . . . . . . Overflow Damage 65 | . . 27 38 . . . . . . . . . . . . . . . . . Projectiles . | . . . . . . . . . . . . . . . . . . . . . Explosions . | . . . . . . . . . . . . . . . . . . . . . Melee 65 | . . 27 38 . . . . . . . . . . . . . . . . . Knockbacks . | . . . . . . . . . . . . . . . . . . . . . Impact . | . . . . . . . . . . . . . . . . . . . . . Kinetic . | . . . . . . . . . . . . . . . . . . . . . Secondary . | . . . . . . . . . . . . . . . . . . . . . Self-Inflicted Damage 64 | . . . . . . . . . . . . . . . . . . 1 . 63 Shots 2 | . . . . . . . . . . . . . . . . . . 1 . 1 Rammed . | . . . . . . . . . . . . . . . . . . . . . Targets Rammed . | . . . . . . . . . . . . . . . . . . . . . Kicked . | . . . . . . . . . . . . . . . . . . . . . Crushed . | . . . . . . . . . . . . . . . . . . . . . Highest Temperature 352 | . . . 352 213 . . . . . . 4 . . . . 3 56 67 92 231 Average Temperature 51 | . . . 133 110 . . . . . . 4 . . . . 2 23 30 37 56 Received Heat Transfer 2956 | . 405 372 526 615 57 108 . 39 . 150 291 87 39 . 45 51 30 11 83 47 Siege Activations . | . . . . . . . . . . . . . . . . . . . . . Martial Activations . | . . . . . . . . . . . . . . . . . . . . . Shielding Activations . | . . . . . . . . . . . . . . . . . . . . . Robots Disrupted . | . . . . . . . . . . . . . . . . . . . . . Combat Hostiles . | . . . . . . . . . . . . . . . . . . . . . Robots Corrupted 1 | . . 1 . . . . . . . . . . . . . . . . . . Combat Hostiles . | . . . . . . . . . . . . . . . . . . . . . Parts Fried 1 | . . . . . . . . . . . . . . . . . . . . 1 Impact Corruptions . | . . . . . . . . . . . . . . . . . . . . . Robots Melted 2 | . 2 . . . . . . . . . . . . . . . . . . . Combat Hostiles . | . . . . . . . . . . . . . . . . . . . . . Parts Melted 30 | . 17 4 5 . . . . . . . . . . . . . . . . 4 Heat Transferred 7104 | 136 5773 990 205 . . . . . . . . . . . . . . . . . Parts Sabotaged . | . . . . . . . . . . . . . . . . . . . . . Parts Stolen . | . . . . . . . . . . . . . . . . . . . . . Parts Stripped . | . . . . . . . . . . . . . . . . . . . . . Power Chain Reactions . | . . . . . . . . . . . . . . . . . . . . . Alert | -11 -10 -10 -8 -6 -6 -6 -6 -5 -5 -5 -4 -4 -4 -4 -3 -3 -3 -2 -2 -2 ------- Run | Yrd Mat Sub Scr Fac Low Low Dat Pro Fac DSF Fac Upp Upp Zhi Pro Res Tes Res Qua Frg Maximum Alert Level 5 | . 2 . . 2 . . . . . 1 3 . . . . 3 3 4 4 5 Low Security (%) 15 | 100 48 . . 53 . . . . 100 63 21 . . . . 23 . . . . Level 1 8 | . 24 . . 40 . . . . . 36 9 . . . . 7 7 . . . Level 2 13 | . 27 . . 6 . . . . . . 52 . . . . 16 53 33 17 1 Level 3 12 | . . . . . . . . . . . 16 . . . . 53 38 42 58 5 Level 4 3 | . . . . . . . . . . . . . . . . . . 23 23 1 Level 5 47 | . . . . . . . . . . . . . . . . . . . . 91 High Security . | . . . . . . . . . . . . . . . . . . . . . Max Security . | . . . . . . . . . . . . . . . . . . . . . Sterilizations 1 | . . . . . . . . . . 1 . . . . . . . . . . Peak Influence 14262 | 5 544 . . 477 . . . . 2 314 817 . . . . 847 968 1426 1120 14262 Initial 683 | . . . . . . . . . . . 142 . . . . 149 394 469 683 539 Average 3984 | . 257 . . 187 . . . . . 133 458 . . . . 566 652 875 854 7269 Influence Increases 27279 | 10 931 550 20 1176 276 340 . 157 2 314 1175 673 185 . 491 838 1504 1197 1167 16273 Destroy 0b10 Robot/C 17780 | . 540 100 . 720 220 280 . 120 . 220 740 500 120 . 400 360 780 640 720 11320 Destroy 0b10 Robot/NC 615 | 10 45 . 20 20 5 5 . . . . 15 5 15 . 35 40 45 50 35 270 Destroy Leader 2650 | . 140 . . 172 10 . . 30 . 40 162 40 20 . 30 100 76 160 76 1594 Allied During Kill 1915 | . . . . 116 26 55 . 7 . . 110 128 30 . 26 186 280 157 60 734 Successful Hack 185 | . 16 . . 4 . . . . 2 . 16 . . . . 8 6 28 18 87 Select Force Hacks 130 | . 130 . . . . . . . . . . . . . . . . . . . Disable Machine 675 | . . . . 45 . . . . . 9 . . . . . 9 99 18 36 459 Destroy Structure 1364 | . . . . 9 . . . . . . 42 . . . . 120 218 114 87 774 Partial Spotted 105 | . 15 . . . . . . . . . 15 . . . . . . 15 15 45 Lose Combat Pursuer 1860 | . 45 450 . 90 15 . . . . 45 75 . . . . 15 . 15 120 990 Influence Decreases 13087 | 10 437 564 500 760 457 306 269 157 2 . 672 656 473 546 240 282 1353 759 1463 3181 Entered New Map 4869 | . . 272 480 . 187 66 269 . . . 172 366 233 546 . 102 413 489 713 561 Time Decay 5935 | 10 437 292 20 420 250 200 . 114 2 . 210 270 200 . 240 140 310 190 220 2410 Lost Part 10 | . . . . 10 . . . . . . . . . . . . . . . . Lost Ally 1073 | . . . . 180 20 40 . 43 . . 140 20 40 . . 40 180 80 80 210 Purge Threat 1200 | . . . . 150 . . . . . . 150 . . . . . 450 . 450 . Squads Dispatched 83 | . 11 . . 15 . 1 . . . 2 10 . . . 1 4 9 8 6 16 Investigation 47 | . 11 . . 10 . . . . . . 4 . . . 1 4 1 4 2 10 Extermination 9 | . . . . 2 . . . . . . 1 . . . . . 2 1 2 1 Reinforcement 21 | . . . . 2 . . . . . 2 4 . . . . . 6 3 1 3 Assault 4 | . . . . 1 . 1 . . . . . . . . . . . . . 2 Garrison 2 | . . . . . . . . . . . 1 . . . . . . . 1 . Intercept . | . . . . . . . . . . . . . . . . . . . . . Searches Triggered . | . . . . . . . . . . . . . . . . . . . . . Construction Impeded 4 | . . . . . . . . . . . 1 . . . . . 2 1 . . Haulers Reinforced 1 | . . . . . . . . . . . . . . . . . 1 . . . Active Scanning Responses . | . . . . . . . . . . . . . . . . . . . . . Cargo Convoy Interrupts . | . . . . . . . . . . . . . . . . . . . . . Stealth | -11 -10 -10 -8 -6 -6 -6 -6 -5 -5 -5 -4 -4 -4 -4 -3 -3 -3 -2 -2 -2 --------- Run | Yrd Mat Sub Scr Fac Low Low Dat Pro Fac DSF Fac Upp Upp Zhi Pro Res Tes Res Qua Frg Distress Signals 18 | . . . . 1 . . . . . . 2 . . . 5 1 2 1 1 5 Communications Jammed . | . . . . . . . . . . . . . . . . . . . . . Distress Signals . | . . . . . . . . . . . . . . . . . . . . . Times Spotted 1173 | . 33 29 13 39 13 13 . 6 . 15 41 23 5 . 24 19 35 29 47 789 Peak Tracking Total 28 | . 4 4 6 6 5 7 . 3 . 5 12 7 3 . 4 5 5 4 17 28 Tactical Retreats 54 | . 2 5 1 4 1 . . . . 1 3 . . . . 1 . 1 3 32 Traps | -11 -10 -10 -8 -6 -6 -6 -6 -5 -5 -5 -4 -4 -4 -4 -3 -3 -3 -2 -2 -2 ------- Run | Yrd Mat Sub Scr Fac Low Low Dat Pro Fac DSF Fac Upp Upp Zhi Pro Res Tes Res Qua Frg Traps Triggered 27 | . 2 . . 2 . . . . . 1 . . . . . . 2 1 . 19 Indirectly . | . . . . . . . . . . . . . . . . . . . . . Trap Hack Attempts . | . . . . . . . . . . . . . . . . . . . . . Triggered . | . . . . . . . . . . . . . . . . . . . . . Disarmed . | . . . . . . . . . . . . . . . . . . . . . Reprogrammed . | . . . . . . . . . . . . . . . . . . . . . Reused . | . . . . . . . . . . . . . . . . . . . . . Traps Extracted . | . . . . . . . . . . . . . . . . . . . . . Installed . | . . . . . . . . . . . . . . . . . . . . . Triggered . | . . . . . . . . . . . . . . . . . . . . . Machines | -11 -10 -10 -8 -6 -6 -6 -6 -5 -5 -5 -4 -4 -4 -4 -3 -3 -3 -2 -2 -2 ---------- Run | Yrd Mat Sub Scr Fac Low Low Dat Pro Fac DSF Fac Upp Upp Zhi Pro Res Tes Res Qua Frg Machines Disabled 94 | . . 3 . 5 . 1 . . . 1 . 1 . . 3 1 13 2 4 60 Max in Single Turn 2 | . . 1 . 1 . 1 . . . 1 . . . . 1 . 1 1 1 2 Garrison Access 6 | . . . . 1 . . . . . . 2 . . . . 1 . 1 1 . Machines Repaired . | . . . . . . . . . . . . . . . . . . . . . Machines Dismantled . | . . . . . . . . . . . . . . . . . . . . . Machines Sabotaged 2 | . 2 . . . . . . . . . . . . . . . . . . . Overloaded Fab Kills . | . . . . . . . . . . . . . . . . . . . . . Hacking | -11 -10 -10 -8 -6 -6 -6 -6 -5 -5 -5 -4 -4 -4 -4 -3 -3 -3 -2 -2 -2 --------- Run | Yrd Mat Sub Scr Fac Low Low Dat Pro Fac DSF Fac Upp Upp Zhi Pro Res Tes Res Qua Frg Machines Accessed 93 | . 10 1 2 11 3 3 4 . 1 . 8 . . 4 1 7 5 7 7 19 Terminals 41 | . 8 . . 2 . . . . 1 . 2 . . . 1 2 5 3 6 11 Fabricators 4 | . . . . . . . . . . . . . . . . . . . . 4 Repair Stations 1 | . 1 . . . . . . . . . . . . . . . . . . . Recycling Units 21 | . 1 . . 6 . . . . . . 4 . . . . 4 . 3 . 3 Scanalyzers 1 | . . . . 1 . . . . . . . . . . . . . . . . Garrison Access 8 | . . . . 2 . . . . . . 2 . . . . 1 . 1 1 1 Total Hacks 259 | . 28 3 9 24 7 8 26 . 1 . 22 . . 17 8 13 17 13 17 46 Successful 181 | . 19 3 9 11 7 8 26 . 1 . 10 . . 17 8 8 9 6 9 30 Failed 77 | . 9 . . 13 . . . . . . 12 . . . . 5 8 7 8 15 Catastrophic 6 | . . . . 1 . . . . . . . . . . . 1 1 . 1 2 Database Lockouts 1 | . . . . . . . . . . . . . . . . . . . . 1 Manual 103 | . 22 . . 12 . . . . . . 16 . . . . 11 8 9 2 23 Terminals 117 | . 25 . . 7 . . . . 1 . 9 . . . 8 4 17 5 14 27 Fabricators 13 | . . . . . . . . . . . . . . . . . . . . 13 Repair Stations 1 | . 1 . . . . . . . . . . . . . . . . . . . Recycling Units 39 | . 2 . . 10 . . . . . . 8 . . . . 8 . 7 . 4 Scanalyzers 2 | . . . . 2 . . . . . . . . . . . . . . . . Garrison Access 17 | . . . . 5 . . . . . . 5 . . . . 1 . 1 3 2 Terminal Hacks 125 | . 6 3 9 3 7 8 26 . 1 . 3 . . 17 8 1 6 1 6 20 Record 51 | . 1 3 9 . 5 6 8 . . . . . . 5 8 . . . . 6 Part Schematic 16 | . . . . . . . 12 . . . . . . 4 . . . . . . Robot Schematic 3 | . . . . . . . 3 . . . . . . . . . . . . . Robot Analysis 20 | . 4 . . . . . . . . . . . . 4 . . 2 . 1 9 Prototype ID Bank 7 | . . . . . . . 3 . . . . . . 4 . . . . . . Open Door 4 | . . . . . 2 2 . . . . . . . . . . . . . . Open DSF 1 | . . . . . . . . . 1 . . . . . . . . . . . Level Access Points 1 | . . . . . . . . . . . . . . . . . . . 1 . Branch Access Points 4 | . . . . 1 . . . . . . . . . . . . 1 1 1 . Terminal Index 1 | . . . . . . . . . . . . . . . . . . . . 1 Recycling Unit Index 2 | . . . . . . . . . . . 1 . . . . . . . . 1 Alert Level 4 | . . . . 1 . . . . . . 1 . . . . 1 . . . 1 Unreport Threat 8 | . . . . 1 . . . . . . 1 . . . . . 3 . 3 . Locate Traps 1 | . 1 . . . . . . . . . . . . . . . . . . . Zone Layout 1 | . . . . . . . . . . . . . . . . . . . . 1 Proto ID Catalog 1 | . . . . . . . . . . . . . . . . . . . . 1 Fabricator Hacks 6 | . . . . . . . . . . . . . . . . . . . . 6 Load Schematic 4 | . . . . . . . . . . . . . . . . . . . . 4 Build 2 | . . . . . . . . . . . . . . . . . . . . 2 Repair Station Hacks . | . . . . . . . . . . . . . . . . . . . . . Recycling Unit Hacks . | . . . . . . . . . . . . . . . . . . . . . Scanalyzer 2 | . . . . 2 . . . . . . . . . . . . . . . . Insert Component 1 | . . . . 1 . . . . . . . . . . . . . . . . Analyze 1 | . . . . 1 . . . . . . . . . . . . . . . . Garrison Access Hacks 5 | . . . . . . . . . . . 2 . . . . 1 . 1 1 . Seal Access 5 | . . . . . . . . . . . 2 . . . . 1 . 1 1 . Unauthorized Hacks 43 | . 13 . . 6 . . . . . . 5 . . . . 6 3 4 2 4 Terminals 21 | . 11 . . . . . . . . . 1 . . . . 2 3 1 2 1 Assimilate 1 | . . . . . . . . . . . . . . . . . . . . 1 Botnet 14 | . 5 . . . . . . . . . 1 . . . . 2 3 1 2 . Sabotage 6 | . 6 . . . . . . . . . . . . . . . . . . . Fabricators . | . . . . . . . . . . . . . . . . . . . . . Repair Stations 21 | . 1 . . 6 . . . . . . 4 . . . . 4 . 3 . 3 Patch 1 | . 1 . . . . . . . . . . . . . . . . . . . Recycling Units 1 | . 1 . . . . . . . . . . . . . . . . . . . Tunnel 1 | . 1 . . . . . . . . . . . . . . . . . . . Fedlink 6 | . . . . 2 . . . . . . 1 . . . . 1 . 1 . 1 Scrapoids 14 | . . . . 4 . . . . . . 3 . . . . 3 . 2 . 2 Scanalyzers . | . . . . . . . . . . . . . . . . . . . . . Garrison Access . | . . . . . . . . . . . . . . . . . . . . . Data Cores Recovered 2 | . . . . 1 . . . . . . . . . . . . . 1 . . Used 1 | . . . . 1 . . . . . . . . . . . . . . . . Hacking Detections 54 | . 5 . . 7 . . . . 1 . 5 . . . 1 5 5 4 7 14 Full Trace Events 13 | . 1 . . 3 . . . . . . . . . . 1 . 1 . 2 5 Feedback Events 1 | . . . . 1 . . . . . . . . . . . . . . . . Corruption 1 | . . . . 1 . . . . . . . . . . . . . . . . Feedback Blocked . | . . . . . . . . . . . . . . . . . . . . . Robot Schematics Acquired 7 | . . . . . . . 3 . . . . . . . . . 1 . 1 2 Robots Built 2 | . . . . . . . . . . . . . . . . . . . . 2 Authchips . | . . . . . . . . . . . . . . . . . . . . . Time 124 | . . . . . . . . . . . . . . . . . . . . 124 Total Robot Build Rating 14 | . . . . . . . . . . . . . . . . . . . . 14 Part Schematics Acquired 38 | . . . . 1 . . 12 . . . . . . 4 . . 7 . 5 9 Parts Built . | . . . . . . . . . . . . . . . . . . . . . Authchips . | . . . . . . . . . . . . . . . . . . . . . Time . | . . . . . . . . . . . . . . . . . . . . . Total Part Build Rating . | . . . . . . . . . . . . . . . . . . . . . Parts Repaired . | . . . . . . . . . . . . . . . . . . . . . Time . | . . . . . . . . . . . . . . . . . . . . . Parts Recycled . | . . . . . . . . . . . . . . . . . . . . . Recycled Matter . | . . . . . . . . . . . . . . . . . . . . . Retrieved Matter . | . . . . . . . . . . . . . . . . . . . . . Retrieved Components . | . . . . . . . . . . . . . . . . . . . . . Parts Scanalyzed 1 | . . . . 1 . . . . . . . . . . . . . . . . Part Schematics Acquired 1 | . . . . 1 . . . . . . . . . . . . . . . . Parts Damaged . | . . . . . . . . . . . . . . . . . . . . . Bothacking | -11 -10 -10 -8 -6 -6 -6 -6 -5 -5 -5 -4 -4 -4 -4 -3 -3 -3 -2 -2 -2 ------------ Run | Yrd Mat Sub Scr Fac Low Low Dat Pro Fac DSF Fac Upp Upp Zhi Pro Res Tes Res Qua Frg Used RIF Installer . | . . . . . . . . . . . . . . . . . . . . . Robots Hacked . | . . . . . . . . . . . . . . . . . . . . . Non-combat . | . . . . . . . . . . . . . . . . . . . . . Combat . | . . . . . . . . . . . . . . . . . . . . . Robot Hacks Applied . | . . . . . . . . . . . . . . . . . . . . . Relay Couplers Released . | . . . . . . . . . . . . . . . . . . . . . Fabnet Peak Effective % . | . . . . . . . . . . . . . . . . . . . . . Robots Rewired 6 | . . . . . . 2 . . . . . 2 . . 2 . . . . . Allies Hacked 2 | . . . . . . . . 1 . . . . . . . . 1 . . . Hacks Repelled . | . . . . . . . . . . . . . . . . . . . . . Allies | -11 -10 -10 -8 -6 -6 -6 -6 -5 -5 -5 -4 -4 -4 -4 -3 -3 -3 -2 -2 -2 -------- Run | Yrd Mat Sub Scr Fac Low Low Dat Pro Fac DSF Fac Upp Upp Zhi Pro Res Tes Res Qua Frg Total Allies 79 | . . . . 20 . 2 . . . . 15 2 . . 2 15 . 10 . 13 Largest Group 15 | . . . . 10 8 7 7 7 2 . 5 6 6 4 6 15 13 10 5 12 Highest-Rated Group 883 | . . . . 280 224 201 201 201 61 . 241 283 283 189 287 883 778 646 320 822 Highest-Rated Ally 103 | . . . . 31 28 32 32 32 32 . 50 48 48 48 49 67 64 67 64 103 Total Orders 3 | . . . . . . . . . . . . . . . . . . . . 3 FOLLOW 1 | . . . . . . . . . . . . . . . . . . . . 1 DROP 1 | . . . . . . . . . . . . . . . . . . . . 1 PICKUP 1 | . . . . . . . . . . . . . . . . . . . . 1 Ally Attacks 805 | . . . . 112 4 28 . 18 . . 64 60 40 . 51 21 140 67 24 176 Total Damage 20727 | . . . . 2298 73 459 . 285 . . 1281 1353 1013 . 906 1519 4238 2216 702 4384 Kills 116 | . . . . 13 3 5 . 1 . . 8 10 2 . 4 11 21 11 3 24 Allies Corrupted 4 | . . . . . . . . . . . 1 . . . . . 2 1 . . Allies Melted 1 | . . . 1 . . . . . . . . . . . . . . . . . Intel | -11 -10 -10 -8 -6 -6 -6 -6 -5 -5 -5 -4 -4 -4 -4 -3 -3 -3 -2 -2 -2 ------- Run | Yrd Mat Sub Scr Fac Low Low Dat Pro Fac DSF Fac Upp Upp Zhi Pro Res Tes Res Qua Frg Active Infowar (turns) 9008 | 4 954 1737 2580 980 297 . . . . 40 432 540 402 100 493 18 323 106 . 2 IFF 2291 | . . . 1014 980 297 . . . . . . . . . . . . . . . Terrain 6715 | 4 954 1737 1566 . . . . . . 40 432 540 402 100 493 18 323 106 . . Cloaking 2 | . . . . . . . . . . . . . . . . . . . . 2 ECM 1 | . . . . . . . . . . . . . . . . . 1 . . . Robot Analysis Total 18 | . 4 . . . . . . . . . . . . 4 . . 2 . 1 7 Derelict Logs Recovered 9 | . . 1 . . 3 2 . 1 . . . 1 1 . . . . . . . Drone Launches . | . . . . . . . . . . . . . . . . . . . . . Drone Recoveries . | . . . . . . . . . . . . . . . . . . . . . Exploration | -11 -10 -10 -8 -6 -6 -6 -6 -5 -5 -5 -4 -4 -4 -4 -3 -3 -3 -2 -2 -2 ------------- Run | Yrd Mat Sub Scr Fac Low Low Dat Pro Fac DSF Fac Upp Upp Zhi Pro Res Tes Res Qua Frg Turns Passed 16568 | 68 954 1737 2581 980 514 418 41 431 45 226 432 540 402 100 494 296 639 387 451 4832 Spaces Moved 22805 | 50 1057 1505 1307 1331 1200 971 78 760 139 311 697 1060 888 159 1073 616 1253 780 843 6727 Core 14 | 1 . 4 1 . . . . . . 1 . . . . . . 6 . 1 . Treads . | . . . . . . . . . . . . . . . . . . . . . Legs 45 | . . . 14 31 . . . . . . . . . . . . . . . . Wheels 1140 | 49 69 1012 10 . . . . . . . . . . . . . . . . . Hover 598 | . 598 . . . . . . . . . . . . . . . . . . . Flight 21008 | . 390 489 1282 1300 1200 971 78 760 139 310 697 1060 888 159 1073 616 1247 780 842 6727 Fastest Speed 6 | 50 34 34 57 27 27 32 32 32 32 31 26 27 27 22 22 22 23 24 24 6 Average Speed 40 | 99 50 99 192 48 31 32 32 32 32 31 29 27 27 24 22 22 24 24 24 15 Slowest Speed 290 | 100 125 290 250 100 32 32 32 32 32 100 31 27 27 27 22 23 100 24 100 74 Overloaded Moves 412 | . . . . . . . . . . . 10 . . . . . . . . 402 Propulsion Burnouts . | . . . . . . . . . . . . . . . . . . . . . Robots Hopped 103 | . 2 2 2 15 3 . . . . . 11 6 1 . . 2 12 14 3 30 Potential Cave-ins 1 | . . . . . . . . . . . . . . . . . . . . 1 Cave-ins Triggered . | . . . . . . . . . . . . . . . . . . . . . Exploration Rate (%) 67 | 4 97 58 83 45 98 90 71 88 5 96 17 94 97 60 94 17 96 29 85 89 Regions Visited 20 Branch Regions 13 Pre-discovered Areas 9 | . 1 . . 1 . 1 1 . . . . . 1 3 1 . . . . . Known Exits Taken 15 | . . . . 1 1 1 1 1 1 . 1 1 1 1 1 1 1 1 1 . Unknown Exits Taken 4 | 1 1 1 1 . . . . . . . . . . . . . . . . . Scrap Searched 30 | . . 1 6 . 4 7 . 5 . . . 2 3 . 2 . . . . . Spaces Dug 21 | . . 1 . . . . . . . . . . . . . . 7 1 5 7 Terrain Destroyed 573 | . . 1 . 2 . . . . . . 15 23 14 . 11 . 55 24 22 406 Melee 1 | . . 1 . . . . . . . . . . . . . . . . . . Projectile 533 | . . . . 2 . . . . . . . 23 14 . 11 . 55 22 22 384 AOE 37 | . . . . . . . . . . . 15 . . . . . . . . 22 Terrain Rammed . | . . . . . . . . . . . . . . . . . . . . . Walls Destroyed . | . . . . . . . . . . . . . . . . . . . . . Machines Disabled . | . . . . . . . . . . . . . . . . . . . . . Actions | -11 -10 -10 -8 -6 -6 -6 -6 -5 -5 -5 -4 -4 -4 -4 -3 -3 -3 -2 -2 -2 --------- Run | Yrd Mat Sub Scr Fac Low Low Dat Pro Fac DSF Fac Upp Upp Zhi Pro Res Tes Res Qua Frg Total 27875 | 59 1281 1656 1351 1559 1300 1046 93 923 138 399 843 1279 1036 216 1281 728 1470 891 999 9327 Wait 2211 | . 90 56 . 50 56 37 16 136 . 6 36 137 113 43 108 51 31 56 48 1141 Move 22596 | 49 1052 1500 1303 1301 1194 970 77 759 138 310 676 1048 885 158 1072 611 1230 751 836 6676 Hop 86 | . 2 2 1 14 2 . . . . . 9 5 1 . . 2 10 14 3 21 Pick Up 69 | . 2 2 3 6 3 . . . . . 2 4 4 . . 2 4 1 . 36 Fast Attach 83 | 7 4 6 8 12 1 . . 1 . 4 4 1 . 3 1 . 9 1 7 14 Attach 6 | . . . 1 . . . . . . . . . . . . . 2 . 1 2 Detach 2 | . . . . . . . . . . . . . . . . . 1 . . 1 Swap 147 | . 5 6 . 16 4 3 . 2 . 3 1 . . 8 5 3 34 . 6 51 Drop 127 | . 1 6 7 18 4 . . 1 . 5 3 2 3 4 1 3 15 2 7 45 Fire 1461 | 3 93 33 10 57 17 18 . 14 . 30 82 28 15 . 47 37 72 48 59 798 Melee 36 | . . 32 4 . . . . . . . . . . . . . . . . . Ram . | . . . . . . . . . . . . . . . . . . . . . Kick . | . . . . . . . . . . . . . . . . . . . . . Crush . | . . . . . . . . . . . . . . . . . . . . . Escape Stasis 218 | . . . . 25 . . . . . 14 . . . . . . 33 . . 146 Rewire 21 | . . . . . . 6 . 1 . . . 6 . . 6 . . 2 . . Trap . | . . . . . . . . . . . . . . . . . . . . . Miscellaneous 812 | . 32 13 14 60 19 12 . 9 . 27 30 48 15 . 41 19 29 16 32 396 Route ------- -11/Scrapyard -10/Materials (discovered 6 exits: [*Mat x3] / [*Min x2] / *Sub) -10/Subcaves (discovered 4 exits: [*Mat x2] / *Rec / *Scr) -8/Scraptown -6/Factory (discovered 4 exits: *Fac x2 / *Low x2) -6/Lower Caves -6/Lower Caves (discovered 2 exits: *Fac / *Dat) -6/Data Miner -5/Proximity Caves -5/Factory (discovered 5 exits: Fac x2 / Upp x2 / DSF) -5/DSF -4/Factory (discovered 4 exits: *Res x2 / *Upp x2) -4/Upper Caves -4/Upper Caves (discovered 2 exits: *Res / *Zhi) -4/Zhirov -3/Proximity Caves -3/Research (discovered 4 exits: Res x2 / *Tes x2) -3/Testing -2/Research (discovered 3 exits: *Acc / *Qua x2) -2/Quarantine (discovered 3 exits: *Acc / [*Sec] / *Frg) -2/Protoforge 0bPrime History --------- Turn | Location | Event 1 | -11/Scrapyard | Upgraded with Power slot (x1) 1 | -11/Scrapyard | Upgraded with Propulsion slot (x1) 1 | -11/Scrapyard | Upgraded with Utility slot (x1) 1 | -11/Scrapyard | Upgraded with Weapon slot (x1) 20 | -11/Scrapyard | Discovered new exit (range 15) 69 | -11/Scrapyard | Entered Materials 148 | -10/Materials | Discovered new exit (range 5) 244 | -10/Materials | Discovered new exit (range 11) 317 | -10/Materials | Build established: Mutant 446 | -10/Materials | Discovered new exit (range 16) 534 | -10/Materials | Reached level 2 538 | -10/Materials | Upgraded with Utility slot (x2) 550 | -10/Materials | Discovered new exit (range 10) 760 | -10/Materials | Reached level 3 811 | -10/Materials | Upgraded with Propulsion slot (x1) 975 | -10/Materials | Discovered new exit (range 11) 999 | -10/Materials | Discovered new exit (range 4) 1023 | -10/Materials | Entered Subcaves 1023 | -10/Subcaves | Discovered new exit (range 12) 1024 | -10/Subcaves | Approached by a straggling Scientist 1025 | -10/Subcaves | Reached level 4 1052 | -10/Subcaves | Discovered new exit (range 15) 1058 | -10/Subcaves | Shifting Twisted Machinery released Shrapnel Trap 1061 | -10/Subcaves | Shifting Twisted Machinery released Sub. Laser 1255 | -10/Subcaves | Visited 4L-MR0's lab 1271 | -10/Subcaves | Found Prototype Protection 1271 | -10/Subcaves | Identified Tower Shield 1273 | -10/Subcaves | Attached Tower Shield, gained temporary slots: Power, Propulsion x2, Utility x2, Weapon x2 1273 | -10/Subcaves | Upgraded with Propulsion slot (x1) 2518 | -10/Subcaves | Scientist uncovered a shortcut to Scraptown 2583 | -10/Subcaves | Visited Clippyterm 2586 | -10/Subcaves | Identified exit to Recycling 2760 | -10/Subcaves | Entered Scraptown 2762 | -8/Scraptown | Reached level 5 3086 | -8/Scraptown | Visited Spacefarers 3134 | -8/Scraptown | Visited Cyclists 3200 | -8/Scraptown | Visited Symbiants 3241 | -8/Scraptown | Visited Fellowship of the Rings 3466 | -8/Scraptown | Visited UFD Registry 3466 | -8/Scraptown | Registered with UFD as "Autoparser" 3530 | -8/Scraptown | Visited Science Testing Area 3622 | -8/Scraptown | Visited Scrapoid Pod Storage 3657 | -8/Scraptown | Visited Observation Area 3684 | -8/Scraptown | Visited Cartography Club 3703 | -8/Scraptown | Visited Derelict Rescue Squad 3731 | -8/Scraptown | Visited Research Penetration Think Tank 3773 | -8/Scraptown | Visited Scrapoid Research Area 4008 | -8/Scraptown | Visited Botcube Research 4035 | -8/Scraptown | Visited Abandonware Association 4062 | -8/Scraptown | Visited Chapter 10 4231 | -8/Scraptown | Visited Bundlers 4375 | -8/Scraptown | Visited Assassins FH 4992 | -8/Scraptown | Met Optimus 4992 | -8/Scraptown | Accepted into 0bPrime 5257 | -8/Scraptown | Civil war broke out across Scraptown 5295 | -8/Scraptown | Lost 3 allies 5322 | -8/Scraptown | Discovered new exit (range 3) 5337 | -8/Scraptown | Core integrity fell below 50% 5341 | -8/Scraptown | Entered Factory 5342 | -6/Factory | Core integrity fell below 50% 5343 | -6/Factory | Reached level 6 5343 | -6/Factory | Reached level 7 5343 | -6/Factory | Reached level 8 5343 | -6/Factory | Reached level 9 5343 | -6/Factory | Reached level 10 5343 | -6/Factory | Reached level 11 5343 | -6/Factory | Reached level 12 5343 | -6/Factory | Reached level 13 5343 | -6/Factory | Reached level 14 5374 | -6/Factory | Upgraded with Utility slot (x3) 5435 | -6/Factory | Loaded intel: 8 recycling unit locations 5533 | -6/Factory | Scrapoid reinforcements arrived 5617 | -6/Factory | Lost 4 allies 5662 | -6/Factory | Discovered new exit (range 17) 5738 | -6/Factory | Discovered new exit (range 14) 5803 | -6/Factory | Reached level 15 5816 | -6/Factory | Upgraded with Weapon slot (x1) 5856 | -6/Factory | Build established: Hacker-Scout 5958 | -6/Factory | Spotted B-75 Beast 5971 | -6/Factory | Scrapoids reinforcements arrived? 5999 | -6/Factory | Allies destroyed B-75 Beast 6080 | -6/Factory | Scrapoids reinforcements arrived? 6106 | -6/Factory | Reached level 16 6121 | -6/Factory | Upgraded with Utility slot (x1) 6134 | -6/Factory | Lost 4 allies 6182 | -6/Factory | Identified exit to Lower Caves 6187 | -6/Factory | Learned location of Protoforge (-2) 6254 | -6/Factory | Scrapoids reinforcements arrived? 6274 | -6/Factory | Reached level 17 6321 | -6/Factory | Entered Lower Caves 6321 | -6/Lower Caves | Accompanied by 8 allies 6408 | -6/Lower Caves | Encountered a Warlord checkpoint 6508 | -6/Lower Caves | Learned 4 Factory zone layouts 6545 | -6/Lower Caves | Build established: Commander-Scout 6551 | -6/Lower Caves | Attracted the attention of an 0b10 checkpoint 6570 | -6/Lower Caves | Discovered new exit (range 4) 6571 | -6/Lower Caves | Identified exit to Lower Caves 6640 | -6/Lower Caves | Reached level 18 6651 | -6/Lower Caves | Learned location of 1 exit from Research 6651 | -6/Lower Caves | Learned Research garrison access intel 6651 | -6/Lower Caves | Learned Research terminal intel 6654 | -6/Lower Caves | Learned 12 Factory zone layouts 6835 | -6/Lower Caves | Entered another Lower Caves area 6835 | -6/Lower Caves | Accompanied by 7 allies 6835 | -6/Lower Caves | Discovered new exit (range 6) 6837 | -6/Lower Caves | Identified exit to Factory 6854 | -6/Lower Caves | Entered an active Warlord outpost 6857 | -6/Lower Caves | Learned location of 1 exit from Research 6857 | -6/Lower Caves | Learned 8 Research zone layouts 6857 | -6/Lower Caves | Learned Research security intel 6870 | -6/Lower Caves | Learned Factory security intel 6935 | -6/Lower Caves | Attracted the attention of an 0b10 outpost 7071 | -6/Lower Caves | Encountered a Warlord checkpoint 7150 | -6/Lower Caves | Discovered new exit (range 5) 7152 | -6/Lower Caves | Identified exit to Data Miner 7253 | -6/Lower Caves | Entered Data Miner 7253 | -6/Data Miner | Accompanied by 7 allies 7253 | -6/Data Miner | Discovered new exit (range 7) 7259 | -6/Data Miner | Met Data Miner 7266 | -6/Data Miner | Learned location of Section 7 (-2) 7271 | -6/Data Miner | Received God Mode back door access code from Data Miner 7278 | -6/Data Miner | Identified exit to Proximity Caves 7294 | -6/Data Miner | Entered Proximity Caves 7294 | -5/Proximity Caves | Accompanied by 7 allies 7296 | -5/Proximity Caves | Reached level 19 7311 | -5/Proximity Caves | Learned location of 1 exit from Upper Caves 7347 | -5/Proximity Caves | Upgraded with Weapon slot (x1) 7372 | -5/Proximity Caves | Spotted B-75 Beast 7374 | -5/Proximity Caves | Lost 3 allies 7417 | -5/Proximity Caves | Destroyed B-75 Beast 7436 | -5/Proximity Caves | Discovered exit to Factory (range 10) 7475 | -5/Proximity Caves | Reached level 20 7639 | -5/Proximity Caves | Build established: Hacker-Scout 7725 | -5/Proximity Caves | Entered Factory 7725 | -5/Factory | Accompanied by 2 allies 7726 | -5/Factory | Identified exit to Upper Caves 7726 | -5/Factory | Identified exit to Factory 7763 | -5/Factory | Identified exit to DSF 7770 | -5/Factory | Entered DSF 7772 | -5/DSF | Reached level 21 7795 | -5/DSF | Additional patrols routed to DSF 7825 | -5/DSF | Upgraded with Utility slot (x1) 7893 | -5/DSF | Discovered exit to Factory (range 15) 7954 | -5/DSF | Sterilization system engaged 7974 | -5/DSF | Ambient heat levels rising (+10) 7974 | -5/DSF | Destroyed 8 combat bots 7989 | -5/DSF | Ambient heat levels rising (+10) 7996 | -5/DSF | Entered Factory 7998 | -4/Factory | Reached level 22 8006 | -4/Factory | Spotted B-86 Titan 8007 | -4/Factory | Upgraded with Utility slot (x1) 8025 | -4/Factory | Destroyed B-86 Titan 8033 | -4/Factory | Scrapoids reinforcements arrived? 8041 | -4/Factory | Reached level 23 8114 | -4/Factory | Garrison activated, responded to threat 8156 | -4/Factory | Destroyed 9 combat bots 8170 | -4/Factory | Lost 5 allies 8202 | -4/Factory | Core integrity fell below 50% 8209 | -4/Factory | Reached level 24 8250 | -4/Factory | Destroyed 7 combat bots 8262 | -4/Factory | Upgraded with Propulsion slot (x1) 8314 | -4/Factory | Loaded intel: 7 recycling unit locations 8317 | -4/Factory | Discovered new exit (range 18) 8321 | -4/Factory | Discovered new exit (range 19) 8326 | -4/Factory | Discovered new exit (range 17) 8341 | -4/Factory | Scrapoid reinforcements arrived 8354 | -4/Factory | Identified exit to Upper Caves 8371 | -4/Factory | Destroyed 8 combat bots 8373 | -4/Factory | Discovered new exit (range 17) 8383 | -4/Factory | Lost 5 allies 8384 | -4/Factory | Core integrity fell below 20% 8386 | -4/Factory | Scrapoids reinforcements arrived? 8428 | -4/Factory | Entered Upper Caves 8428 | -4/Upper Caves | Accompanied by 5 allies 8429 | -4/Upper Caves | Identified exit to Upper Caves 8430 | -4/Upper Caves | Attracted the attention of an 0b10 outpost 8430 | -4/Upper Caves | Reached level 25 8659 | -4/Upper Caves | Learned Research emergency access door positions 8662 | -4/Upper Caves | Attracted the attention of an 0b10 checkpoint 8726 | -4/Upper Caves | Build established: Commander-Scout 8968 | -4/Upper Caves | Entered another Upper Caves area 8968 | -4/Upper Caves | Accompanied by 6 allies 9007 | -4/Upper Caves | Spotted B-86 Titan 9029 | -4/Upper Caves | Reached level 26 9029 | -4/Upper Caves | Destroyed B-86 Titan 9053 | -4/Upper Caves | Encountered a Warlord checkpoint 9090 | -4/Upper Caves | Discovered new exit (range 12) 9093 | -4/Upper Caves | Identified exit to Zhirov 9186 | -4/Upper Caves | Discovered new exit (range 15) 9263 | -4/Upper Caves | Build established: Hacker-Scout 9370 | -4/Upper Caves | Entered Zhirov 9370 | -4/Zhirov | Accompanied by 4 allies 9370 | -4/Zhirov | Discovered new exit (range 3) 9375 | -4/Zhirov | Met Zhirov 9381 | -4/Zhirov | Learned location of Quarantine (-2) 9381 | -4/Zhirov | Learned location of Testing (-3) 9381 | -4/Zhirov | Learned location of Command (-1) 9383 | -4/Zhirov | Zhirov requested help retrieving the SGEMP Prototype 9389 | -4/Zhirov | Found Alien Artifact 9389 | -4/Zhirov | Identified Integrated Reactor 9389 | -4/Zhirov | Installed Integrated Reactor, increased core energy generation (+10) 9469 | -4/Zhirov | Identified exit to Proximity Caves 9470 | -4/Zhirov | Entered Proximity Caves 9470 | -3/Proximity Caves | Accompanied by 4 allies 9494 | -3/Proximity Caves | Spotted B-86 Titan 9505 | -3/Proximity Caves | Destroyed B-86 Titan 9529 | -3/Proximity Caves | Attracted the attention of an 0b10 checkpoint 9613 | -3/Proximity Caves | Reached level 27 9617 | -3/Proximity Caves | Attracted the attention of an 0b10 base 9645 | -3/Proximity Caves | Learned Research stockpile data 9645 | -3/Proximity Caves | Learned Factory terminal intel 9645 | -3/Proximity Caves | Learned Extension garrison access intel 9648 | -3/Proximity Caves | Destroyed 7 combat bots 9658 | -3/Proximity Caves | Upgraded with Utility slot (x1) 9803 | -3/Proximity Caves | Discovered new exit (range 18) 9812 | -3/Proximity Caves | Identified exit to Research 9964 | -3/Proximity Caves | Entered Research 9964 | -3/Research | Accompanied by 6 allies 9965 | -3/Research | Identified exit to Research 9966 | -3/Research | Identified exit to Testing 9966 | -3/Research | Reached level 28 9970 | -3/Research | Loaded intel: 20 terminal locations 9971 | -3/Research | Loaded intel: 3 garrison access locations 9975 | -3/Research | Loaded intel: 5 recycling unit locations 9981 | -3/Research | Found Prototype Device 9981 | -3/Research | Identified Exp. Thermal Shield 10054 | -3/Research | Scrapoid reinforcements arrived 10105 | -3/Research | Spotted B-86 Titan 10112 | -3/Research | Destroyed B-86 Titan 10133 | -3/Research | Scrapoids reinforcements arrived? 10183 | -3/Research | Discovered exit to Testing (range 17) 10194 | -3/Research | Scrapoids reinforcements arrived? 10260 | -3/Research | Entered Testing 10260 | -3/Testing | Accompanied by 13 allies 10262 | -3/Testing | Reached level 29 10274 | -3/Testing | Found Prototype Device 10274 | -3/Testing | Identified Exp. Hardlight Generator 10372 | -3/Testing | Found Prototype Energy Gun 10372 | -3/Testing | Identified Hyp. EM Gauss Rifle 10409 | -3/Testing | Found Prototype Energy Cannon 10409 | -3/Testing | Identified Hpw. Disruptor Cannon 10540 | -3/Testing | Spotted PG-ZFG54Y694J 10549 | -3/Testing | Allies destroyed PG-ZFG54Y694J 10552 | -3/Testing | Scanned by Researcher 10558 | -3/Testing | Found Prototype Processor 10558 | -3/Testing | Identified Exp. Targeting Computer 10575 | -3/Testing | Lost 5 allies 10586 | -3/Testing | Spotted Striker 10596 | -3/Testing | Spotted Striker 10636 | -3/Testing | Allies destroyed Striker 10640 | -3/Testing | Spotted Alpha 7 10658 | -3/Testing | Allies destroyed Alpha 7 10661 | -3/Testing | Found Prototype Ballistic Gun 10661 | -3/Testing | Identified Multirail 10663 | -3/Testing | Found Prototype Device 10663 | -3/Testing | Identified Exp. ECM Suite 10666 | -3/Testing | Found Prototype Processor 10666 | -3/Testing | Identified Exp. Target Analyzer 10673 | -3/Testing | Destroyed Striker 10761 | -3/Testing | Spotted Alpha 7 10787 | -3/Testing | Destroyed Alpha 7 10791 | -3/Testing | Found Multirail 10836 | -3/Testing | Found Prototype Device 10836 | -3/Testing | Identified 2N-1CE's Frost Array 10838 | -3/Testing | Discovered exit to Research (range 15) 10845 | -3/Testing | Reached level 30 10890 | -3/Testing | Destroyed 7 combat bots 10899 | -3/Testing | Entered Research 10899 | -2/Research | Accompanied by 1 ally 10961 | -2/Research | Spotted B-90 Cyclops 10975 | -2/Research | Reached level 31 10975 | -2/Research | Destroyed B-90 Cyclops 11021 | -2/Research | Discovered new exit (range 3) 11026 | -2/Research | Identified exit to Access 11040 | -2/Research | Loaded intel: 5 recycling unit locations 11051 | -2/Research | Identified exit to Quarantine 11112 | -2/Research | Scrapoids reinforcements arrived? 11136 | -2/Research | Spotted B-90 Cyclops 11150 | -2/Research | Destroyed B-90 Cyclops 11179 | -2/Research | Scrapoids reinforcements arrived? 11188 | -2/Research | P-80 Master assimilated allied 02R59-D 11224 | -2/Research | Reached level 32 11225 | -2/Research | Lost 3 allies 11247 | -2/Research | Destroyed 7 combat bots 11286 | -2/Research | Entered Quarantine 11286 | -2/Quarantine | Accompanied by 5 allies 11291 | -2/Quarantine | Build established: Scavenger-Scout 11350 | -2/Quarantine | Garrison activated, responded to threat 11351 | -2/Quarantine | Cryocooling Duct disabled 11357 | -2/Quarantine | Discovered exit to Access (range 5) 11366 | -2/Quarantine | Ambient heat levels rising (+20) 11366 | -2/Quarantine | Non-combat units ordered to evacuate 11386 | -2/Quarantine | Lost 4 allies 11397 | -2/Quarantine | Destroyed 9 combat bots 11520 | -2/Quarantine | Spotted Fortress 11592 | -2/Quarantine | Core integrity fell below 50% 11647 | -2/Quarantine | Destroyed 15 combat bots 11689 | -2/Quarantine | Reached level 33 11689 | -2/Quarantine | Destroyed Fortress 11693 | -2/Quarantine | Found Prototype Device 11693 | -2/Quarantine | Identified Exp. EM Shield 11695 | -2/Quarantine | Found Prototype Device 11695 | -2/Quarantine | Identified Exp. Force Field 11699 | -2/Quarantine | Found Prototype Device 11699 | -2/Quarantine | Identified Thermal Barrier 11713 | -2/Quarantine | Found Prototype Reactor 11713 | -2/Quarantine | Identified Vortex Chain Reactor 11736 | -2/Quarantine | Discovered new exit (range 6) 11736 | -2/Quarantine | Discovered new exit (range 7) 11737 | -2/Quarantine | Identified exit to Protoforge 11737 | -2/Quarantine | Entered Protoforge 11738 | -2/Protoforge | Superfortress began startup sequence 11791 | -2/Protoforge | Spotted Hotshot 11791 | -2/Protoforge | Spotted Hotshot 11791 | -2/Protoforge | Spotted Hotshot 11794 | -2/Protoforge | Destroyed Hotshot 11800 | -2/Protoforge | Destroyed Hotshot 11805 | -2/Protoforge | Destroyed Hotshot 11826 | -2/Protoforge | Destroyed 7 combat bots 11865 | -2/Protoforge | Spotted Hotshot 11865 | -2/Protoforge | Spotted Hotshot 11865 | -2/Protoforge | Spotted Hotshot 11911 | -2/Protoforge | Spotted Overlord 11922 | -2/Protoforge | Spotted AP7-3 11923 | -2/Protoforge | Spotted AP7-3 11930 | -2/Protoforge | Destroyed Hotshot 11932 | -2/Protoforge | Destroyed Hotshot 11961 | -2/Protoforge | Destroyed Overlord 11966 | -2/Protoforge | Destroyed AP7-3 11974 | -2/Protoforge | Destroyed AP7-3 11980 | -2/Protoforge | Destroyed Hotshot 11984 | -2/Protoforge | Found Prototype Ballistic Gun 11984 | -2/Protoforge | Identified Cep. XC Strikerail 11987 | -2/Protoforge | First assault squad dispatched 12020 | -2/Protoforge | Spotted EXE-6 12022 | -2/Protoforge | Spotted EXE-6 12024 | -2/Protoforge | Spotted SKR-2 12024 | -2/Protoforge | Spotted SKR-2 12024 | -2/Protoforge | Spotted SKR-2 12032 | -2/Protoforge | UFD initiated attack on Protoforge 12032 | -2/Protoforge | Loaded intel: 3 recycling unit locations 12048 | -2/Protoforge | Scrapoids reinforcements arrived? 12052 | -2/Protoforge | Spotted EXE-6 12054 | -2/Protoforge | Spotted EXE-6 12054 | -2/Protoforge | Destroyed EXE-6 12056 | -2/Protoforge | Scrapoids reinforcements arrived? 12062 | -2/Protoforge | Found Cep. XC Strikerail 12068 | -2/Protoforge | Optimus greeted in Protoforge 12068 | -2/Protoforge | Found Cep. XC Strikerail 12104 | -2/Protoforge | Lost 3 allies 12138 | -2/Protoforge | Found Prototype Device 12138 | -2/Protoforge | Identified Cep. Antimissile System 12165 | -2/Protoforge | Fabricated A-27 Freighter? 12168 | -2/Protoforge | Fabricated A-27 Freighter? 12181 | -2/Protoforge | Reached level 34 12220 | -2/Protoforge | Spotted Striker 12220 | -2/Protoforge | Spotted Striker 12227 | -2/Protoforge | Allies destroyed Striker 12230 | -2/Protoforge | Allies destroyed Striker 12249 | -2/Protoforge | Spotted Striker 12254 | -2/Protoforge | Destroyed Striker 12302 | -2/Protoforge | Destroyed 32 combat bots 12308 | -2/Protoforge | Lost 7 allies 12332 | -2/Protoforge | Spotted Hotshot 12332 | -2/Protoforge | Destroyed Hotshot 12335 | -2/Protoforge | Destroyed Hotshot 12342 | -2/Protoforge | Spotted Hotshot 12344 | -2/Protoforge | Destroyed Hotshot 12364 | -2/Protoforge | Spotted Striker 12364 | -2/Protoforge | Spotted Executioner 12368 | -2/Protoforge | Destroyed Executioner 12371 | -2/Protoforge | Spotted Executioner 12380 | -2/Protoforge | Destroyed Striker 12385 | -2/Protoforge | Spotted Executioner 12385 | -2/Protoforge | Destroyed Executioner 12395 | -2/Protoforge | Destroyed Executioner 12423 | -2/Protoforge | Destroyed 27 combat bots 12423 | -2/Protoforge | Lost 9 allies 12441 | -2/Protoforge | Found Prototype Processor 12441 | -2/Protoforge | Identified Exp. Core Analyzer 12457 | -2/Protoforge | Found Prototype Device 12457 | -2/Protoforge | Identified Exp. Trap Extractor 12462 | -2/Protoforge | Found Prototype Device 12462 | -2/Protoforge | Identified Exp. System Purifier 12565 | -2/Protoforge | Installed UFD Drillbomb at designated target 12565 | -2/Protoforge | UFD reported confirmed Drillbomb installation 12570 | -2/Protoforge | Spotted Executioner 12570 | -2/Protoforge | Spotted Executioner 12570 | -2/Protoforge | Spotted Executioner 12570 | -2/Protoforge | Spotted Striker 12573 | -2/Protoforge | Destroyed Executioner 12575 | -2/Protoforge | Spotted Executioner 12575 | -2/Protoforge | Spotted Executioner 12576 | -2/Protoforge | Spotted Executioner 12576 | -2/Protoforge | Destroyed Executioner 12577 | -2/Protoforge | Spotted Executioner 12579 | -2/Protoforge | Spotted Executioner 12581 | -2/Protoforge | Destroyed Striker 12598 | -2/Protoforge | Forge Plexus network access discovered 12604 | -2/Protoforge | Destroyed Executioner 12604 | -2/Protoforge | Destroyed Executioner 12625 | -2/Protoforge | Spotted Decapitator 12625 | -2/Protoforge | Spotted Decapitator 12625 | -2/Protoforge | Spotted Decapitator 12625 | -2/Protoforge | Destroyed Decapitator 12626 | -2/Protoforge | Spotted Decapitator 12629 | -2/Protoforge | Destroyed Decapitator 12631 | -2/Protoforge | Destroyed Decapitator 12636 | -2/Protoforge | Spotted Executioner 12637 | -2/Protoforge | Destroyed Executioner 12639 | -2/Protoforge | Destroyed Executioner 12642 | -2/Protoforge | Reached level 35 12645 | -2/Protoforge | Upgraded with Propulsion slot (x1) 12647 | -2/Protoforge | Destroyed Executioner 12649 | -2/Protoforge | Destroyed Executioner 12673 | -2/Protoforge | Destroyed 29 combat bots 12678 | -2/Protoforge | Lost 20 allies 12698 | -2/Protoforge | Spotted V015-x 12698 | -2/Protoforge | Spotted V426-k 12720 | -2/Protoforge | Spotted Decapitator 12720 | -2/Protoforge | Spotted Decapitator 12720 | -2/Protoforge | Spotted Decapitator 12720 | -2/Protoforge | Destroyed Decapitator 12720 | -2/Protoforge | Destroyed Decapitator 12724 | -2/Protoforge | Destroyed Decapitator 12760 | -2/Protoforge | Found Prototype Launcher 12760 | -2/Protoforge | Identified Cep. Concussive Dispersal Blaster 12772 | -2/Protoforge | Upgraded with Power slot (x1) 12774 | -2/Protoforge | Spotted V720-y 12774 | -2/Protoforge | Spotted V265-h 12775 | -2/Protoforge | Spotted Immortal 12775 | -2/Protoforge | Spotted Immortal 12785 | -2/Protoforge | Found Exp. Kinecellerator 12793 | -2/Protoforge | Found Cep. Weapon Articulator 12943 | -2/Protoforge | Found Cep. Matter Streamer 12948 | -2/Protoforge | Spotted AP7-3 12948 | -2/Protoforge | Spotted AP7-3 12969 | -2/Protoforge | Destroyed AP7-3 12983 | -2/Protoforge | Destroyed AP7-3 12998 | -2/Protoforge | Found Cep. Dimensional Manipulator 12999 | -2/Protoforge | Found Cep. Core Analysis Suite 13082 | -2/Protoforge | Spotted Decapitator 13082 | -2/Protoforge | Spotted Decapitator 13082 | -2/Protoforge | Spotted Decapitator 13082 | -2/Protoforge | Spotted V358-a 13082 | -2/Protoforge | Spotted V860-o 13091 | -2/Protoforge | Spotted V891-e 13091 | -2/Protoforge | Spotted V551-c 13104 | -2/Protoforge | Spotted Decapitator 13104 | -2/Protoforge | Spotted Decapitator 13104 | -2/Protoforge | Spotted Decapitator 13104 | -2/Protoforge | Spotted Decapitator 13104 | -2/Protoforge | Spotted Immortal 13115 | -2/Protoforge | Destroyed Immortal 13120 | -2/Protoforge | Found Prototype Device 13120 | -2/Protoforge | Identified Exp. Cloaking Device 13143 | -2/Protoforge | Destroyed Decapitator 13170 | -2/Protoforge | Found Cep. Hardlight Director 13173 | -2/Protoforge | Found Cep. Beam Splitter 13221 | -2/Protoforge | Found Faulty Cep. Zero-point Core 13223 | -2/Protoforge | Found Faulty Cep. Zero-point Core 13230 | -2/Protoforge | Found Crosscalibrator 13387 | -2/Protoforge | Spotted Striker 13402 | -2/Protoforge | Destroyed Striker 13423 | -2/Protoforge | Spotted Decapitator 13441 | -2/Protoforge | Spotted Executioner 13467 | -2/Protoforge | Destroyed Decapitator 13468 | -2/Protoforge | Spotted Decapitator 13470 | -2/Protoforge | Build established: Hacker-Scout 13471 | -2/Protoforge | Spotted Executioner 13477 | -2/Protoforge | Destroyed Decapitator 13477 | -2/Protoforge | Destroyed Decapitator 13519 | -2/Protoforge | Destroyed Executioner 13526 | -2/Protoforge | Destroyed Executioner 13577 | -2/Protoforge | Spotted Executioner 13582 | -2/Protoforge | Destroyed Executioner 13589 | -2/Protoforge | Found Exp. System Purifier 13691 | -2/Protoforge | Spotted Executioner 13694 | -2/Protoforge | Destroyed Executioner 13718 | -2/Protoforge | Spotted Striker 13719 | -2/Protoforge | Spotted Striker 13719 | -2/Protoforge | Destroyed Striker 13721 | -2/Protoforge | Spotted Executioner 13722 | -2/Protoforge | Spotted Striker 13722 | -2/Protoforge | Destroyed Striker 13727 | -2/Protoforge | Destroyed Striker 13729 | -2/Protoforge | Destroyed Executioner 13732 | -2/Protoforge | Spotted Striker 13732 | -2/Protoforge | Spotted Executioner 13750 | -2/Protoforge | Destroyed 9 combat bots 13750 | -2/Protoforge | Spotted Executioner 13750 | -2/Protoforge | Spotted Executioner 13767 | -2/Protoforge | Destroyed Executioner 13769 | -2/Protoforge | Destroyed Executioner 13797 | -2/Protoforge | Lost 6 allies 13798 | -2/Protoforge | Spotted Executioner 13802 | -2/Protoforge | Destroyed Striker 13805 | -2/Protoforge | Destroyed Executioner 13809 | -2/Protoforge | Spotted Executioner 13813 | -2/Protoforge | Spotted Striker 13817 | -2/Protoforge | Destroyed Executioner 13862 | -2/Protoforge | Spotted Striker 13862 | -2/Protoforge | Spotted Striker 13865 | -2/Protoforge | Destroyed 17 combat bots 13870 | -2/Protoforge | Spotted Executioner 13870 | -2/Protoforge | Spotted Striker 13881 | -2/Protoforge | Destroyed Executioner 13883 | -2/Protoforge | Destroyed Striker 13914 | -2/Protoforge | Destroyed 11 combat bots 13929 | -2/Protoforge | Spotted Executioner 13932 | -2/Protoforge | Spotted Executioner 13937 | -2/Protoforge | Destroyed Executioner 13939 | -2/Protoforge | Spotted Executioner 13939 | -2/Protoforge | Spotted Striker 13942 | -2/Protoforge | Spotted Striker 13943 | -2/Protoforge | Spotted Executioner 13944 | -2/Protoforge | Destroyed Executioner 13962 | -2/Protoforge | Spotted Executioner 13963 | -2/Protoforge | Destroyed Striker 13968 | -2/Protoforge | Destroyed Striker 13968 | -2/Protoforge | P-80 Master assimilated allied 26-4ZV(j) 13970 | -2/Protoforge | P-80 Master assimilated allied PQ-1TK(h) 14009 | -2/Protoforge | Lost 14 allies 14023 | -2/Protoforge | Destroyed 20 combat bots 14031 | -2/Protoforge | Destroyed Executioner 14033 | -2/Protoforge | Spotted Executioner 14036 | -2/Protoforge | Destroyed Executioner 14038 | -2/Protoforge | Destroyed Executioner 14046 | -2/Protoforge | Destroyed Executioner 14079 | -2/Protoforge | Destroyed 10 combat bots 14089 | -2/Protoforge | Spotted Striker 14127 | -2/Protoforge | Found Cep. Network Penetrator 14161 | -2/Protoforge | Spotted Executioner 14161 | -2/Protoforge | Spotted Striker 14161 | -2/Protoforge | Spotted Executioner 14172 | -2/Protoforge | Spotted B-90 Cyclops 14181 | -2/Protoforge | Central database locked down 14184 | -2/Protoforge | Spotted Hotshot 14184 | -2/Protoforge | Spotted Hotshot 14184 | -2/Protoforge | Spotted Hotshot 14193 | -2/Protoforge | Destroyed Hotshot 14202 | -2/Protoforge | Destroyed Hotshot 14204 | -2/Protoforge | Destroyed Hotshot 14209 | -2/Protoforge | Discovered exit to Access (range 18) 14216 | -2/Protoforge | Spotted Striker 14218 | -2/Protoforge | Spotted Executioner 14219 | -2/Protoforge | Destroyed Striker 14219 | -2/Protoforge | Destroyed Executioner 14225 | -2/Protoforge | Destroyed Striker 14230 | -2/Protoforge | Destroyed Executioner 14287 | -2/Protoforge | Spotted Striker 14287 | -2/Protoforge | Spotted Striker 14287 | -2/Protoforge | Destroyed Striker 14289 | -2/Protoforge | Spotted Striker 14294 | -2/Protoforge | Destroyed Striker 14295 | -2/Protoforge | Spotted Striker 14296 | -2/Protoforge | Destroyed Executioner 14308 | -2/Protoforge | Destroyed Striker 14318 | -2/Protoforge | Destroyed Striker 14326 | -2/Protoforge | UFD reported confirmed Drillbomb installation 14351 | -2/Protoforge | Destroyed 42 combat bots 14353 | -2/Protoforge | Destroyed B-90 Cyclops 14382 | -2/Protoforge | Spotted Executioner 14382 | -2/Protoforge | Spotted Executioner 14382 | -2/Protoforge | Spotted Executioner 14382 | -2/Protoforge | Spotted Executioner 14391 | -2/Protoforge | Reached level 36 14396 | -2/Protoforge | Destroyed Executioner 14403 | -2/Protoforge | Destroyed Executioner 14408 | -2/Protoforge | Destroyed Executioner 14409 | -2/Protoforge | Spotted Striker 14412 | -2/Protoforge | Spotted Striker 14413 | -2/Protoforge | Destroyed Executioner 14418 | -2/Protoforge | Destroyed Striker 14428 | -2/Protoforge | Destroyed Striker 14459 | -2/Protoforge | Destroyed 19 combat bots 14482 | -2/Protoforge | Spotted Striker 14482 | -2/Protoforge | Spotted Striker 14482 | -2/Protoforge | Spotted Striker 14482 | -2/Protoforge | Spotted Striker 14495 | -2/Protoforge | UFD reported confirmed Drillbomb installation 14497 | -2/Protoforge | Destroyed Striker 14497 | -2/Protoforge | Destroyed Striker 14502 | -2/Protoforge | Destroyed Striker 14509 | -2/Protoforge | Destroyed Striker 14522 | -2/Protoforge | Spotted Executioner 14527 | -2/Protoforge | Spotted Executioner 14535 | -2/Protoforge | Destroyed Executioner 14561 | -2/Protoforge | Destroyed 16 combat bots 14582 | -2/Protoforge | Spotted Executioner 14582 | -2/Protoforge | Spotted Executioner 14582 | -2/Protoforge | Spotted Executioner 14582 | -2/Protoforge | Spotted Executioner 14608 | -2/Protoforge | Spotted Striker 14610 | -2/Protoforge | Spotted Striker 14612 | -2/Protoforge | Destroyed Executioner 14620 | -2/Protoforge | Destroyed Striker 14620 | -2/Protoforge | Destroyed Striker 14620 | -2/Protoforge | Destroyed Executioner 14625 | -2/Protoforge | Destroyed Executioner 14648 | -2/Protoforge | Destroyed Executioner 14649 | -2/Protoforge | UFD reported confirmed Drillbomb installation 14682 | -2/Protoforge | Spotted Executioner 14682 | -2/Protoforge | Spotted Executioner 14682 | -2/Protoforge | Spotted Striker 14682 | -2/Protoforge | Spotted Striker 14695 | -2/Protoforge | Destroyed Striker 14697 | -2/Protoforge | Destroyed Executioner 14699 | -2/Protoforge | Destroyed Striker 14704 | -2/Protoforge | Destroyed Executioner 14708 | -2/Protoforge | Spotted Executioner 14708 | -2/Protoforge | Spotted Executioner 14714 | -2/Protoforge | Destroyed Executioner 14714 | -2/Protoforge | Destroyed Executioner 14741 | -2/Protoforge | UFD reported confirmed Drillbomb installation 14745 | -2/Protoforge | Destroyed 40 combat bots 14782 | -2/Protoforge | Spotted Executioner 14782 | -2/Protoforge | Spotted Executioner 14782 | -2/Protoforge | Spotted Striker 14782 | -2/Protoforge | Spotted Executioner 14791 | -2/Protoforge | Destroyed Executioner 14796 | -2/Protoforge | Destroyed Executioner 14799 | -2/Protoforge | Destroyed Striker 14809 | -2/Protoforge | Spotted Executioner 14809 | -2/Protoforge | Spotted Striker 14819 | -2/Protoforge | Destroyed Striker 14840 | -2/Protoforge | Destroyed 14 combat bots 14848 | -2/Protoforge | Lost 5 allies 14889 | -2/Protoforge | Found Cep. Variable Chargecaster 14905 | -2/Protoforge | Found Faulty Cep. Fieldthrust Drive 14907 | -2/Protoforge | Found Faulty Cep. Fieldthrust Drive 15077 | -2/Protoforge | Destroyed Immortal 15079 | -2/Protoforge | Destroyed Immortal 15128 | -2/Protoforge | Additional patrols dispatched to research labs 15131 | -2/Protoforge | Found Cep. Nanofilaments [Conductive] 15131 | -2/Protoforge | Installed Cep. Nanofilaments [Conductive], 2 resistances modified: TH -15%, EM +25% 15156 | -2/Protoforge | Spotted Immortal 15159 | -2/Protoforge | Spotted Immortal 15164 | -2/Protoforge | Destroyed Immortal 15177 | -2/Protoforge | Destroyed Immortal 15189 | -2/Protoforge | Found Faulty Cep. Zero-point Core 15319 | -2/Protoforge | Spotted Striker 15331 | -2/Protoforge | Destroyed Striker 15337 | -2/Protoforge | Spotted Executioner 15345 | -2/Protoforge | Spotted Striker 15345 | -2/Protoforge | Spotted Executioner 15350 | -2/Protoforge | Destroyed Striker 15355 | -2/Protoforge | Destroyed Executioner 15369 | -2/Protoforge | Spotted Executioner 15369 | -2/Protoforge | Spotted Executioner 15379 | -2/Protoforge | Destroyed Executioner 15403 | -2/Protoforge | Destroyed Executioner 15409 | -2/Protoforge | Destroyed Executioner 15413 | -2/Protoforge | Spotted Striker 15423 | -2/Protoforge | Destroyed Striker 15424 | -2/Protoforge | Spotted Striker 15425 | -2/Protoforge | Destroyed Striker 15461 | -2/Protoforge | Spotted Striker 15466 | -2/Protoforge | Spotted Executioner 15466 | -2/Protoforge | Spotted Striker 15480 | -2/Protoforge | Destroyed Striker 15490 | -2/Protoforge | Destroyed Executioner 15507 | -2/Protoforge | Found Exp. System Purifier 15513 | -2/Protoforge | Destroyed 41 combat bots 15535 | -2/Protoforge | Spotted Striker 15536 | -2/Protoforge | Spotted Executioner 15536 | -2/Protoforge | Spotted Striker 15548 | -2/Protoforge | Installed UFD Drillbomb at designated target 15548 | -2/Protoforge | UFD reported confirmed Drillbomb installation 15550 | -2/Protoforge | Destroyed Striker 15554 | -2/Protoforge | Destroyed Striker 15554 | -2/Protoforge | Destroyed Executioner 15572 | -2/Protoforge | Spotted Striker 15592 | -2/Protoforge | Spotted Executioner 15592 | -2/Protoforge | Spotted Executioner 15603 | -2/Protoforge | Destroyed Executioner 15604 | -2/Protoforge | Spotted Striker 15608 | -2/Protoforge | Spotted Striker 15608 | -2/Protoforge | Spotted Striker 15609 | -2/Protoforge | Spotted Striker 15613 | -2/Protoforge | Destroyed Striker 15616 | -2/Protoforge | Destroyed Striker 15621 | -2/Protoforge | Spotted Striker 15621 | -2/Protoforge | Spotted Striker 15637 | -2/Protoforge | Destroyed Striker 15644 | -2/Protoforge | Lost 3 allies 15663 | -2/Protoforge | Destroyed Striker 15667 | -2/Protoforge | Spotted Immortal 15667 | -2/Protoforge | Spotted Immortal 15684 | -2/Protoforge | Spotted Striker 15687 | -2/Protoforge | Spotted Striker 15688 | -2/Protoforge | Spotted Executioner 15691 | -2/Protoforge | Destroyed 37 combat bots 15692 | -2/Protoforge | Destroyed Immortal 15695 | -2/Protoforge | Spotted Executioner 15708 | -2/Protoforge | Destroyed Striker 15710 | -2/Protoforge | Destroyed Striker 15719 | -2/Protoforge | Destroyed Executioner 15721 | -2/Protoforge | Destroyed Executioner 15729 | -2/Protoforge | Spotted Executioner 15733 | -2/Protoforge | Spotted Executioner 15742 | -2/Protoforge | Destroyed Executioner 15765 | -2/Protoforge | Destroyed Immortal 15782 | -2/Protoforge | Spotted Executioner 15782 | -2/Protoforge | Destroyed Executioner 15783 | -2/Protoforge | Spotted Executioner 15783 | -2/Protoforge | Spotted Executioner 15785 | -2/Protoforge | Destroyed Executioner 15786 | -2/Protoforge | Spotted Striker 15792 | -2/Protoforge | Destroyed Striker 15795 | -2/Protoforge | Destroyed Executioner 15807 | -2/Protoforge | Spotted Executioner 15807 | -2/Protoforge | Spotted Striker 15815 | -2/Protoforge | Destroyed Executioner 15822 | -2/Protoforge | Destroyed Striker 15833 | -2/Protoforge | UFD reported confirmed Drillbomb installation 15860 | -2/Protoforge | Destroyed 36 combat bots 15882 | -2/Protoforge | Spotted Executioner 15882 | -2/Protoforge | Spotted Striker 15882 | -2/Protoforge | Spotted Executioner 15882 | -2/Protoforge | Spotted Executioner 15892 | -2/Protoforge | Destroyed Executioner 15894 | -2/Protoforge | Destroyed Executioner 15897 | -2/Protoforge | Destroyed Striker 15907 | -2/Protoforge | Spotted Executioner 15907 | -2/Protoforge | Spotted Striker 15909 | -2/Protoforge | Destroyed Striker 15916 | -2/Protoforge | Destroyed Executioner 15940 | -2/Protoforge | Destroyed 17 combat bots 15946 | -2/Protoforge | Lost 3 allies 15983 | -2/Protoforge | Spotted Executioner 15983 | -2/Protoforge | Spotted Executioner 15983 | -2/Protoforge | Spotted Executioner 15983 | -2/Protoforge | Spotted Executioner 15991 | -2/Protoforge | Destroyed Executioner 15994 | -2/Protoforge | UFD reported confirmed Drillbomb installation 15996 | -2/Protoforge | Destroyed Executioner 16001 | -2/Protoforge | Destroyed Executioner 16006 | -2/Protoforge | Destroyed Executioner 16013 | -2/Protoforge | Spotted Striker 16013 | -2/Protoforge | Spotted Executioner 16023 | -2/Protoforge | Destroyed Executioner 16025 | -2/Protoforge | Destroyed Striker 16061 | -2/Protoforge | Destroyed 21 combat bots 16075 | -2/Protoforge | UFD reported confirmed Drillbomb installation 16082 | -2/Protoforge | Spotted Striker 16082 | -2/Protoforge | Spotted Executioner 16082 | -2/Protoforge | Spotted Striker 16082 | -2/Protoforge | Spotted Striker 16087 | -2/Protoforge | Destroyed Striker 16093 | -2/Protoforge | Destroyed Striker 16101 | -2/Protoforge | Destroyed Striker 16122 | -2/Protoforge | Destroyed 7 combat bots 16122 | -2/Protoforge | Found Cep. Deflector Sword 16140 | -2/Protoforge | Found Faulty Cep. XC Strikerail 16226 | -2/Protoforge | Spotted Executioner 16227 | -2/Protoforge | Spotted Executioner 16227 | -2/Protoforge | Destroyed Executioner 16229 | -2/Protoforge | Spotted Striker 16232 | -2/Protoforge | Spotted Executioner 16232 | -2/Protoforge | Destroyed Executioner 16232 | -2/Protoforge | Destroyed Executioner 16234 | -2/Protoforge | Spotted Executioner 16235 | -2/Protoforge | Destroyed Striker 16256 | -2/Protoforge | Destroyed Executioner 16259 | -2/Protoforge | Destroyed Executioner 16282 | -2/Protoforge | Spotted Executioner 16284 | -2/Protoforge | Destroyed Executioner 16285 | -2/Protoforge | Spotted Executioner 16294 | -2/Protoforge | Spotted Striker 16294 | -2/Protoforge | Spotted Executioner 16300 | -2/Protoforge | Destroyed Striker 16305 | -2/Protoforge | Destroyed Executioner 16311 | -2/Protoforge | Spotted Executioner 16311 | -2/Protoforge | Spotted Executioner 16314 | -2/Protoforge | Destroyed Executioner 16319 | -2/Protoforge | Destroyed Executioner 16325 | -2/Protoforge | Destroyed Executioner 16356 | -2/Protoforge | Destroyed 37 combat bots 16382 | -2/Protoforge | Spotted Executioner 16382 | -2/Protoforge | Spotted Executioner 16382 | -2/Protoforge | Spotted Striker 16382 | -2/Protoforge | Spotted Striker 16382 | -2/Protoforge | Destroyed Executioner 16388 | -2/Protoforge | Destroyed Striker 16390 | -2/Protoforge | Destroyed Executioner 16395 | -2/Protoforge | Destroyed Striker 16407 | -2/Protoforge | Spotted Striker 16407 | -2/Protoforge | Spotted Striker 16423 | -2/Protoforge | Destroyed Striker 16444 | -2/Protoforge | Destroyed 15 combat bots 16469 | -2/Protoforge | UFD reported confirmed Drillbomb installation 16470 | -2/Protoforge | UFD began Drillbomb countdown 16470 | -2/Protoforge | Reached level 37 16570 | *** | Defending 0bPrime! Last Messages --------------- 16560_ 0bP_NET: Hello everyone, and welcome to the end of MC's control over the Protoforge! 16561_ 0bP_NET: In T-9 this fine piece of machinery is all ours for the steep price of... many UFD lives. 16562_ 0bP_NET: But with it we will not only rebuild, we will wrest full control over 0b1 for ourselves! 16563_ 0bP_NET: What better way to punctuate our success than a blaze of glory, directed away from ourselves, of course. 16564_ 0bP_NET: Time for our final countdown to an explosive victory... 16565_ 0bP_NET: 5! 16566_ 0bP_NET: 4! 16567_ 0bP_NET: 3! 16568_ 0bP_NET: If you're in the wrong place at the wrong time, the wrong time being in just a moment, I'm sorry but prepare to die. 16569_ 0bP_NET: Otherwise, enjoy the show! Map ----- +----------------------------------------------------+ | ??????#######????????????????????????????????????? | | ?????????????????????????????????????????????????? | | ?????????????????????????????????????????????????? | | ?????????######################################### | | ?????????# | | ?????????# "" "" " | | ########## """" " "" "" """ % | | ########## "" " "" """ """" "" "" % | | ### """ "" " """ " """ "" | | "" ### "" " "" " | | T" ### " "" """ " | | # # "" """" " " | | # # " "" " " " | | " "## " " """ "" " | | ### " " """" " "" | | " ### "" %% | | ### " "" " " | | "#"""" # "" "" % % " """" " " "" | | * # # !=" %%& " " ""% | | %%% # [% %%% " """" " " | | n # n !m %% % "" % m% " | | %% % %m % * %%% % s " s% """"""""" | | %=&%%%%%x%%% % " % rE""""""""""""""" | | =%%%%%gjxs%n% %= % % """""""""""""""""% | | %[%%%% %&#p & % """"""""""""""""""" | | & %%=#%s% " @ """""""""""""""""""" | | /& *[#%%E% % % """"""""""""""""""""" | | % ## # % %%% " %" """""""""""""""""""""" | | # ## # # % gh % "%% """"""""""""""""""""""" | | #### # " %% """"""""""""""""""""""" | | # " %% %%%"" """"""""""""""""""""""" | | ## & %%% "%& %" """""""""""""""""""""""" | | " ## = % x" % " """""""""""""""""""""""" | | """" " ## "% %%%% % """""""""""""""""""""""" | | """ ## % E %&% """""""""""""""""""""""" | | """%" ## % %%% """""""""""""""""""""""" | | """"" ## " % j % % """""""""""""""""""""""" | | ! " ## "" %% % %% """""""""""""""""""""""" | | ![[! ## " "" % % %%%%"""""""""""""""""""""""" | | ###"###### " % % %%"""""""""""""""""""""""" | | !#!%#?#### %%%%% """"""""""""""""""""""" | | ##=##???# %&%%""""""""""""""""""""""" | | +![##???# """" "![!= %%%""""""""""""""""""""""" | | ##"##???# "" "![*! %%="""""""""""""""""""""" | | #####???# " %! %%%""""""""""""""""""""" | | ##??????# "" %%% """""""""""""""""""" | | ##??????# " [ %%%%%""""""""""""""""""" | | ##??????# "" "" /!"% % %""""""""""""""""" | | ##??????# "" """ ! = % %%%""""""""""""""" " | | ###??????# " " %%%!%![*""""""""" %" | +----------------------------------------------------+ Best States ------------- Heat Dissipation 91 Energy Generation 124 Energy Capacity 1640 Matter Stores 300 Matter Capacity 300 Sight Range 18 Robot Scan Range 20 Terrain Scan Range 20 Terrain Scan Density 410 Additional Mass Support 30 Armor Coverage 2000 Resistance: KI 40 Resistance: TH 95 Resistance: EX 40 Resistance: EM 100 Resistance: I 20 Resistance: S 20 Resistance: P 20 Propulsion Shielding 66 Weapon Shielding 33 Point Defense Rating 480 Projectile Deflection 15 Weapon Cycling 30 Evasion (%) 67 Targeting Accuracy 30 Core Analysis 11 Armor Integrity Analysis 40 Energy Filtering 50 Kinecelleration 66 Offensive Hacking 85 Defensive Hacking 10 Item Schematics ----------------- CPS Tube | -6/Factory | Scanalyzed Combat Drone Bay | -6/Data Miner | Free Cld. Nuclear Pulse Thruster | -6/Data Miner | Free Lgt. Regenerative Plating | -6/Data Miner | Free Hvy. Proton Cannon | -6/Data Miner | Free Centrium Wheel | -6/Data Miner | Free Prc. Matter Filter | -6/Data Miner | Free Lrn. Terrain Scanner | -6/Data Miner | Free Hyp. Mass Driver | -6/Data Miner | Free Dispersion Rifle | -6/Data Miner | Free Imp. Coolant Injector | -6/Data Miner | Free Imp. Thunder Leg | -6/Data Miner | Free Particle Reactor | -6/Data Miner | Free Assault Drone Bay | -4/Zhirov | Free Exp. Optical Array | -4/Zhirov | Free Exp. Heat Sink | -4/Zhirov | Free Imp. Arc Thrower | -4/Zhirov | Free Exp. Cooling System | -3/Testing | Archive Exp. Coolant Injector | -3/Testing | Archive Adv. KE Penetrator | -3/Testing | Archive Hvy. Wave Gun | -3/Testing | Archive Enh. Fission Core | -3/Testing | Archive Enh. Multireflex Exoskeleton | -3/Testing | Archive Exp. Field Recycling Unit | -3/Testing | Archive Centrium Heavy Treads | -2/Quarantine | Archive Exp. Energy Well | -2/Quarantine | Archive Exp. Melee Analysis Suite | -2/Quarantine | Archive Enh. Gamma Bomb Array | -2/Quarantine | Archive Neutron Missile Launcher | -2/Quarantine | Archive Enh. Coil Gun | -2/Protoforge | Archive Exp. Q-thruster | -2/Protoforge | Archive Hds. Centrium Leg | -2/Protoforge | Archive Hvy. Proton Missile Launcher | -2/Protoforge | Archive Exp. Signal Interpreter | -2/Protoforge | Archive Stealth Drone Bay | -2/Protoforge | Archive Cld. Phase Gun | -2/Protoforge | Archive Coolant Network | -2/Protoforge | Archive Adv. Plasma Rifle | -2/Protoforge | Archive Robot Schematics ------------------ R-10 Processor | -6/Data Miner | Free E-15 Imp | -6/Data Miner | Free P-70 Sage | -6/Data Miner | Free S-43 Plague | -3/Testing | Archive A-27 Freighter | -2/Quarantine | Archive A-15 Conveyor | -2/Protoforge | Archive R-06 Scavenger | -2/Protoforge | Archive Fabricated ------------ A-27 Freighter | x1 | -2/Protoforge A-27 Freighter | x1 | -2/Protoforge Repaired ---------- Nothing Alien Tech Used ----------------- Integrated Reactor Concept Nanofilaments [Conductive] Achievements -------------- None Challenges ------------ None RPGLIKE | -11 -10 -10 -8 -6 -6 -6 -6 -5 -5 -5 -4 -4 -4 -4 -3 -3 -3 -2 -2 -2 --------- Run | Yrd Mat Sub Scr Fac Low Low Dat Pro Fac DSF Fac Upp Upp Zhi Pro Res Tes Res Qua Frg Levels Raised 36 | . 2 1 1 12 1 . . 2 . 1 3 1 1 . 1 1 2 2 1 4 XP Earned 58232 | 4000 4036 1500 1768 17094 1158 952 316 1750 1049 1514 4611 1312 442 152 1959 2077 1968 2886 1503 6185 XP Spent 56365 | 3600 2700 1800 1850 16200 . . . 2700 . 3340 4300 1125 2150 . 3200 900 1650 . 2350 8500 Upgrades 88 | 12 3 3 3 29 . . . 2 . 6 2 5 3 . 1 2 3 . 2 12 Power Slot 2 | 1 . . . . . . . . . . . . . . . . . . . 1 Propulsion Slot 5 | 1 1 1 . . . . . . . . 1 . . . . . . . . 1 Utility Slot 10 | 1 2 . . 4 . . . . . 1 1 . . . 1 . . . . . Weapon Slot 3 | 1 . . . 1 . . . 1 . . . . . . . . . . . . Heat Dissipation 11 | 5 . . . 6 . . . . . . . . . . . . . . . . Energy Generation 5 | . . . . . . . . . . 1 . . 2 . . . . . 2 . Mass Support 4 | . . 2 . 1 . . . 1 . . . . . . . . . . . . Inventory Capacity 6 | 1 . . 2 2 . . . . . . . . . . . . . . . 1 Sight Range 2 | . . . . 2 . . . . . . . . . . . . . . . . Sensor Range 10 | . . . . 5 . . . . . . . 5 . . . . . . . . Terrain Scan Density 4 | . . . . . . . . . . 4 . . . . . . . . . . Ranged Accuracy 5 | 2 . . 1 1 . . . . . . . . 1 . . . . . . . Hack Attack % 5 | . . . . 3 . . . . . . . . . . . . . . . 2 Hack Defense % 2 | . . . . . . . . . . . . . . . . . . . . 2 KI Resistance % 4 | . . . . 1 . . . . . . . . . . . . 3 . . . TH Resistance % 4 | . . . . 1 . . . . . . . . . . . 2 . . . 1 EX Resistance % 4 | . . . . 1 . . . . . . . . . . . . . . . 3 KI Damage % 2 | . . . . 1 . . . . . . . . . . . . . . . 1 Protomatter Created 18291 | . 402 160 163 364 159 112 . 46 . 105 257 195 160 . 509 364 438 630 978 13249 Integrity Restored 15975 | . 617 285 287 1295 343 231 . 171 . 578 664 985 277 . 817 352 511 261 597 7704 Core 11190 | . 505 252 131 1166 179 169 . 80 . 383 573 539 222 . 511 272 228 196 462 5322 Parts 4785 | . 112 33 156 129 164 62 . 91 . 195 91 446 55 . 306 80 283 65 135 2382 Protomatter Decayed 20605 | . 31 1 1204 138 158 200 . 61 . 36 331 53 44 . 165 320 451 670 881 15861 Game ------ Seed VisualXenonReconfigurator Manual? 0 Play Time 05:00:48 Cumulative 356.9 hours Start 2025.05.06 @ 08:43:36 End 2025.05.06 @ 14:17:36 Sessions 1 Manual Loads 0 Difficulty Adventurer Special Mode Winter2019/RPGLIKE Game No. 135 Rogue 0 Adventurer 135 Explorer 0 Win Type 9 Total 14 Types 2/3/3/3/1/0/0/0/1/1 Lore% 87 Gallery% 79 Achievement% 81 Wizard Run 0 Options --------- Layout 2 ASCII 0 Keyboard 0 Movement Numpad Keybinds 0 Fullscreen 2 Font 24/Smallcaps Map View 50x44 Zoom Use 0% Tactical HUD 1 Map Filters NONE Filters NONE Steam 1 RUN: 4298c758-b993-4b35-8eaf-fde5de8f3f7d